{"text_format":"1","workbook":"xlsx","n_sheets":6,"sheets":["Summary","Table 1","Table 2","Remarks","Param","Formulas"],"not_rendered":{"charts":0,"images":1,"macros":1,"external_links":0,"defined_names":43,"comments":0,"pivot_tables":0},"unopened":[],"bounds":{"document_bytes":16777216,"sheet_cells":100000,"rows_first":2000,"rows_last":500,"rows_between":2000,"halvings":0,"cell_chars":16384,"cell_head_chars":4096},"cells_cut":0,"cells_raw":0,"read":"whole","date_system":"1900"}

{"sheet":"Summary","index":0,"n_rows":27,"n_cols":11,"rows_kept":27,"cut":false,"hidden":false,"merged":[[7,1,7,9],[8,1,8,8]]}
[]
[]
[]
[]
[]
[]
[]
[null,{"$f":"\"Crude Oil Import Register - COIR\"","v":"Crude Oil Import Register - COIR"}]
[null,"COIR_v2023.3"]
[]
[]
[]
[]
[]
[]
[null,"This questionnaire is a template based on the Eurostat-IEA common list of crude oil streams."]
[null,"This template allows data to be submitted through the E-VO system starting with January 2023 data.*"]
[]
[null,"To fill this template  "]
[null,"1. Select your Country and the reference month-year at the top of the Table 1."]
[null,"2. Report all information needed by crude stream."]
[null,"3. On the Summary page, click on Export to produce a CSV file compatible with E-VO."]
[]
[null,"You can address your questions to the Energy Security Data Unit (MOS/SOM):",null,null,null,null,null,null,null,null,"som@iea.org"]
[]
[null,"* Eurostat is developing a common reporting tool which includes additional features (time series, flags). "]
[null,"It should be available in the coming months."]

{"sheet":"Table 1","index":1,"n_rows":499,"n_cols":27,"rows_kept":499,"cut":false,"hidden":false,"merged":[]}
["Confidential (When Completed)",null,null,null,null,null,null,null,null,null,null,null,null,null,null,null,null,null,null,null,null,null,null,null,null,null,"Final"]
["International Energy Agency",null,null,null,null,null,null,null,null,null,null,null,null,null,null,null,null,null,null,null,null,null,null,null,null,null,"Provisional"]
["Information System on the International Oil Market - General Section"]
["IEA Crude Oil Imports (CIF Basis)"]
[]
[]
["Questionnaire","Crude Oil Import Register"]
["Country","(select country)"]
["Month of data","January",2023]
["Status of data","Final",null,null,null,null,null,null,null,null,null,null,null,null,null,null,null,null,null,null,null,null,null,null,null,null,"Datatype"]
["Prepared by",null,null,null,null,null,null,null,null,null,null,null,null,null,null,null,null,null,null,null,null,null,null,null,null,null,"FLOW"]
["Date of transmisssion"]
[]
["Table 1 CRUDE OIL IMPORTS"]
["Region","Country","Crude oil type","Typical\nAPI gravity (degrees)","Typical\nsulphur content (wt %)","Number of reporting companies","API Gravity","Sulphur content","Total\nvolume\n[1000 bbls]","Total\nprice\n[1000 $]","Average price\n[$/bbl]","Total weight [Ktonnes]",null,null,null,null,null,null,null,null,null,null,null,null,null,null,"Product ê"]
["AFRICA","Algeria","Algerian Mix",45.6,0.2,null,null,null,null,null,{"$f":"IF(I16<>0,ROUND(J16/I16,3),\"\")","v":""},{"$f":"IF(OR(G16=\"\",G16=0),\"\",ROUND(1/((G16+131.5)/(141.5*0.159))*I16,3))","v":""},null,null,null,null,null,null,null,null,null,null,null,null,null,null,"DZ_ALG_MIX"]
["AFRICA","Algeria","Hassi Messaoud",42.8,0.2,null,null,null,null,null,{"$f":"IF(I17<>0,ROUND(J17/I17,3),\"\")","v":""},{"$f":"IF(OR(G17=\"\",G17=0),\"\",ROUND(1/((G17+131.5)/(141.5*0.159))*I17,3))","v":""},null,null,null,null,null,null,null,null,null,null,null,null,null,null,"DZ_HME"]
["AFRICA","Algeria","Hassi Ramal","NA",0.1,null,null,null,null,null,{"$f":"IF(I18<>0,ROUND(J18/I18,3),\"\")","v":""},{"$f":"IF(OR(G18=\"\",G18=0),\"\",ROUND(1/((G18+131.5)/(141.5*0.159))*I18,3))","v":""},null,null,null,null,null,null,null,null,null,null,null,null,null,null,"DZ_RME"]
["AFRICA","Algeria","Saharan Blend",45.5,0.1,null,null,null,null,null,{"$f":"IF(I19<>0,ROUND(J19/I19,3),\"\")","v":""},{"$f":"IF(OR(G19=\"\",G19=0),\"\",ROUND(1/((G19+131.5)/(141.5*0.159))*I19,3))","v":""},null,null,null,null,null,null,null,null,null,null,null,null,null,null,"DZ_SAH_BLN"]
["AFRICA","Algeria","Zarzaitine",43,0.1,null,null,null,null,null,"","",null,null,null,null,null,null,null,null,null,null,null,null,null,null,"DZ_ZRZ"]
["AFRICA","Algeria","Algeria Miscellaneous","NA","NA",null,null,null,null,null,"","",null,null,null,null,null,null,null,null,null,null,null,null,null,null,"DZ_MSC"]
["AFRICA","Angola","Cabaca SUR","NA","NA",null,null,null,null,null,"","",null,null,null,null,null,null,null,null,null,null,null,null,null,null,"AO_CAB_SUR"]
["AFRICA","Angola","Clov",32.700000000000003,0.26,null,null,null,null,null,"","",null,null,null,null,null,null,null,null,null,null,null,null,null,null,"AO_CLO"]
["AFRICA","Angola","Dalia",23.6,1.48,null,null,null,null,null,"","",null,null,null,null,null,null,null,null,null,null,null,null,null,null,"AO_DAL"]
["AFRICA","Angola","Gimboa",23.7,0.65,null,null,null,null,null,"","",null,null,null,null,null,null,null,null,null,null,null,null,null,null,"AO_GIM"]
["AFRICA","Angola","Girassol",30.2,0.34,null,null,null,null,null,"","",null,null,null,null,null,null,null,null,null,null,null,null,null,null,"AO_GIR"]
["AFRICA","Angola","Greater Plutonio ","NA","NA",null,null,null,null,null,"","",null,null,null,null,null,null,null,null,null,null,null,null,null,null,"AO_GR_PLO"]
["AFRICA","Angola","Kissanje",30.5,0.37,null,null,null,null,null,"","",null,null,null,null,null,null,null,null,null,null,null,null,null,null,"AO_KSJ"]
["AFRICA","Angola","Malongo",30,0.2,null,null,null,null,null,"","",null,null,null,null,null,null,null,null,null,null,null,null,null,null,"AO_MAL"]
["AFRICA","Angola","Mostarda crude",28.3,1.1200000000000001,null,null,null,null,null,"","",null,null,null,null,null,null,null,null,null,null,null,null,null,null,"AO_MOS"]
["AFRICA","Angola","Nemba",38.5,0,null,null,null,null,null,"","",null,null,null,null,null,null,null,null,null,null,null,null,null,null,"AO_NMB"]
["AFRICA","Angola","Palanca",40,0.14000000000000001,null,null,null,null,null,"","",null,null,null,null,null,null,null,null,null,null,null,null,null,null,"AO_PAL"]
["AFRICA","Angola","Plutonio",33.200000000000003,0.37,null,null,null,null,null,"","",null,null,null,null,null,null,null,null,null,null,null,null,null,null,"AO_PLO"]
["AFRICA","Angola","Takula",33.700000000000003,0.1,null,null,null,null,null,"","",null,null,null,null,null,null,null,null,null,null,null,null,null,null,"AO_TAK"]
["AFRICA","Angola","Angola Miscellaneous","NA","NA",null,null,null,null,null,"","",null,null,null,null,null,null,null,null,null,null,null,null,null,null,"AO_MSC"]
["AFRICA","Benin","Benin Miscellaneous","NA","NA",null,null,null,null,null,"","",null,null,null,null,null,null,null,null,null,null,null,null,null,null,"BJ_MSC"]
["AFRICA","Cameroon","Kole Marine Blend",34.9,0.3,null,null,null,null,null,"","",null,null,null,null,null,null,null,null,null,null,null,null,null,null,"CM_KOL_MAR_BLN"]
["AFRICA","Cameroon","Lokele",21.5,0.5,null,null,null,null,null,"","",null,null,null,null,null,null,null,null,null,null,null,null,null,null,"CM_LKL"]
["AFRICA","Cameroon","Cameroon Miscellaneous","NA","NA",null,null,null,null,null,"","",null,null,null,null,null,null,null,null,null,null,null,null,null,null,"CM_MSC"]
["AFRICA","Chad","Doba Blend (Early Production)",24.8,0.14000000000000001,null,null,null,null,null,"","",null,null,null,null,null,null,null,null,null,null,null,null,null,null,"TD_DOB_BLN_EPRD"]
["AFRICA","Chad","Chad Miscellaneous","NA","NA",null,null,null,null,null,"","",null,null,null,null,null,null,null,null,null,null,null,null,null,null,"TD_MSC"]
["AFRICA","Congo (Brazzaville)","Djeno Blend",26.9,0.3,null,null,null,null,null,"","",null,null,null,null,null,null,null,null,null,null,null,null,null,null,"CG_DJE_BLN"]
["AFRICA","Congo (Brazzaville)","Nkossa",47,0.03,null,null,null,null,null,"","",null,null,null,null,null,null,null,null,null,null,null,null,null,null,"CG_NKO"]
["AFRICA","Congo (Brazzaville)","Congo (Brazzaville) Miscellaneous","NA","NA",null,null,null,null,null,"","",null,null,null,null,null,null,null,null,null,null,null,null,null,null,"CG_BZV_MSC"]
["AFRICA","Côte d'Ivoire","Espoir",31.4,0.3,null,null,null,null,null,"","",null,null,null,null,null,null,null,null,null,null,null,null,null,null,"CI_ESP"]
["AFRICA","Côte d'Ivoire","Côte d'Ivoire Miscellaneous","NA","NA",null,null,null,null,null,"","",null,null,null,null,null,null,null,null,null,null,null,null,null,null,"CI_MSC"]
["AFRICA","Egypt","Belayim",27.5,2.2000000000000002,null,null,null,null,null,"","",null,null,null,null,null,null,null,null,null,null,null,null,null,null,"EG_BLM"]
["AFRICA","Egypt","Rhas Budran",25,2.4500000000000002,null,null,null,null,null,"","",null,null,null,null,null,null,null,null,null,null,null,null,null,null,"EG_RAB"]
["AFRICA","Egypt","Rhas Gharib",24.3,3.3,null,null,null,null,null,"","",null,null,null,null,null,null,null,null,null,null,null,null,null,null,"EG_RAG"]
["AFRICA","Egypt","Zeit Bay",34.1,0.1,null,null,null,null,null,"","",null,null,null,null,null,null,null,null,null,null,null,null,null,null,"EG_ZTB"]
["AFRICA","Egypt","Egypt Miscellaneous","NA","NA",null,null,null,null,null,"","",null,null,null,null,null,null,null,null,null,null,null,null,null,null,"EG_MSC"]
["AFRICA","Equatorial Guinea","Aseng",29.87,0.27,null,null,null,null,null,"","",null,null,null,null,null,null,null,null,null,null,null,null,null,null,"GQ_ASE"]
["AFRICA","Equatorial Guinea","Ceiba",30.1,0.42,null,null,null,null,null,"","",null,null,null,null,null,null,null,null,null,null,null,null,null,null,"GQ_CBA"]
["AFRICA","Equatorial Guinea","Zafiro",30.3,0.254,null,null,null,null,null,"","",null,null,null,null,null,null,null,null,null,null,null,null,null,null,"GQ_ZAF"]
["AFRICA","Equatorial Guinea","Equatorial Guinea Miscellaneous","NA","NA",null,null,null,null,null,"","",null,null,null,null,null,null,null,null,null,null,null,null,null,null,"GQ_MSC"]
["AFRICA","Gabon","Dussafu",35,0.3,null,null,null,null,null,"","",null,null,null,null,null,null,null,null,null,null,null,null,null,null,"GA_DUS"]
["AFRICA","Gabon","Etame Marin",36,1,null,null,null,null,null,"","",null,null,null,null,null,null,null,null,null,null,null,null,null,null,"GA_ETA_MAR"]
["AFRICA","Gabon","Gamba",31.8,0.1,null,null,null,null,null,"","",null,null,null,null,null,null,null,null,null,null,null,null,null,null,"GA_GMB"]
["AFRICA","Gabon","Lucina Marine",39.5,0.1,null,null,null,null,null,"","",null,null,null,null,null,null,null,null,null,null,null,null,null,null,"GA_LUC_MAR"]
["AFRICA","Gabon","Mandji",30.5,1.3,null,null,null,null,null,"","",null,null,null,null,null,null,null,null,null,null,null,null,null,null,"GA_MDJ"]
["AFRICA","Gabon","Oguendjo",35,0.75,null,null,null,null,null,"","",null,null,null,null,null,null,null,null,null,null,null,null,null,null,"GA_OGU"]
["AFRICA","Gabon","Olende",17.600000000000001,1.54,null,null,null,null,null,"","",null,null,null,null,null,null,null,null,null,null,null,null,null,null,"GA_OLD"]
["AFRICA","Gabon","Rabi Blend",34,0.3,null,null,null,null,null,"","",null,null,null,null,null,null,null,null,null,null,null,null,null,null,"GA_RBI_BLN"]
["AFRICA","Gabon","Rabi-Kouanga",34,0.6,null,null,null,null,null,"","",null,null,null,null,null,null,null,null,null,null,null,null,null,null,"GA_RBI_KGA"]
["AFRICA","Gabon","Gabon Miscellaneous","NA","NA",null,null,null,null,null,"","",null,null,null,null,null,null,null,null,null,null,null,null,null,null,"GA_MSC"]
["AFRICA","Ghana","Jubilee",36.4,0.26,null,null,null,null,null,"","",null,null,null,null,null,null,null,null,null,null,null,null,null,null,"GH_JUB"]
["AFRICA","Ghana","Sankofa",28.9,0.3,null,null,null,null,null,"","",null,null,null,null,null,null,null,null,null,null,null,null,null,null,"GH_SAN"]
["AFRICA","Ghana","Ghana Miscellaneous","NA","NA",null,null,null,null,null,"","",null,null,null,null,null,null,null,null,null,null,null,null,null,null,"GH_MSC"]
["AFRICA","Kenya","South Lokichar","NA","NA",null,null,null,null,null,"","",null,null,null,null,null,null,null,null,null,null,null,null,null,null,"KE_STH_LOK"]
["AFRICA","Kenya","Kenya Miscellaneous","NA","NA",null,null,null,null,null,"","",null,null,null,null,null,null,null,null,null,null,null,null,null,null,"KE_MSC"]
["AFRICA","Libya","Al Jurf",30.49,1.84,null,null,null,null,null,"","",null,null,null,null,null,null,null,null,null,null,null,null,null,null,"LY_AJU"]
["AFRICA","Libya","Amna (high pour)",36.1,0.2,null,null,null,null,null,"","",null,null,null,null,null,null,null,null,null,null,null,null,null,null,"LY_AMN_HP"]
["AFRICA","Libya","Bouri",26.5,1.79,null,null,null,null,null,"","",null,null,null,null,null,null,null,null,null,null,null,null,null,null,"LY_BOU"]
["AFRICA","Libya","Brega",40.4,0.2,null,null,null,null,null,"","",null,null,null,null,null,null,null,null,null,null,null,null,null,null,"LY_BRG"]
["AFRICA","Libya","Bu Attifel",43.6,0,null,null,null,null,null,"","",null,null,null,null,null,null,null,null,null,null,null,null,null,null,"LY_BAT"]
["AFRICA","Libya","El Sharara",42.1,7.0000000000000007E-2,null,null,null,null,null,"","",null,null,null,null,null,null,null,null,null,null,null,null,null,null,"LY_SHR"]
["AFRICA","Libya","Es Sider",36.700000000000003,0.38,null,null,null,null,null,"","",null,null,null,null,null,null,null,null,null,null,null,null,null,null,"LY_ESD"]
["AFRICA","Libya","Medium","NA","NA",null,null,null,null,null,"","",null,null,null,null,null,null,null,null,null,null,null,null,null,null,"LY_MED"]
["AFRICA","Libya","Mellitah",42.5,0.115,null,null,null,null,null,"","",null,null,null,null,null,null,null,null,null,null,null,null,null,null,"LY_MEL"]
["AFRICA","Libya","Sarir",38.299999999999997,0.2,null,null,null,null,null,"","",null,null,null,null,null,null,null,null,null,null,null,null,null,null,"LY_SRR"]
["AFRICA","Libya","Sirtica",43.3,0.43,null,null,null,null,null,"","",null,null,null,null,null,null,null,null,null,null,null,null,null,null,"LY_STC"]
["AFRICA","Libya","Wafa","NA","NA",null,null,null,null,null,{"$f":"IF(I82<>0,ROUND(J82/I82,3),\"\")","v":""},{"$f":"IF(OR(G82=\"\",G82=0),\"\",ROUND(1/((G82+131.5)/(141.5*0.159))*I82,3))","v":""},null,null,null,null,null,null,null,null,null,null,null,null,null,null,"LY_WFA"]
["AFRICA","Libya","Zueitina",41.3,0.3,null,null,null,null,null,"","",null,null,null,null,null,null,null,null,null,null,null,null,null,null,"LY_ZUE"]
["AFRICA","Libya","Libya Miscellaneous","NA","NA",null,null,null,null,null,"","",null,null,null,null,null,null,null,null,null,null,null,null,null,null,"LY_MSC"]
["AFRICA","Mauritania","Mauritania Miscellaneous","NA","NA",null,null,null,null,null,"","",null,null,null,null,null,null,null,null,null,null,null,null,null,null,"MR_MSC"]
["AFRICA","Nigeria","Abo",39.5,0.14000000000000001,null,null,null,null,null,"","",null,null,null,null,null,null,null,null,null,null,null,null,null,null,"NG_ABO"]
["AFRICA","Nigeria","Agbami",47.2,4.3999999999999997E-2,null,null,null,null,null,"","",null,null,null,null,null,null,null,null,null,null,null,null,null,null,"NG_ABM"]
["AFRICA","Nigeria","Akpo",45.17,0.06,null,null,null,null,null,"","",null,null,null,null,null,null,null,null,null,null,null,null,null,null,"NG_AKP"]
["AFRICA","Nigeria","Amenam Blend",39,0.09,null,null,null,null,null,"","",null,null,null,null,null,null,null,null,null,null,null,null,null,null,"NG_ANM_BLN"]
["AFRICA","Nigeria","Antan",35.200000000000003,0.26,null,null,null,null,null,"","",null,null,null,null,null,null,null,null,null,null,null,null,null,null,"NG_ATN"]
["AFRICA","Nigeria","Anyala Madu","NA","NA",null,null,null,null,null,"","",null,null,null,null,null,null,null,null,null,null,null,null,null,null,"NG_ANY_MDU"]
["AFRICA","Nigeria","Bonga",28.1,0.25,null,null,null,null,null,"","",null,null,null,null,null,null,null,null,null,null,null,null,null,null,"NG_BNG"]
["AFRICA","Nigeria","Bonny Light",36.700000000000003,0.1,null,null,null,null,null,"","",null,null,null,null,null,null,null,null,null,null,null,null,null,null,"NG_BON_LGHT"]
["AFRICA","Nigeria","Brass River",40.9,0.1,null,null,null,null,null,"","",null,null,null,null,null,null,null,null,null,null,null,null,null,null,"NG_BRA_RIV"]
["AFRICA","Nigeria","EA",38,0.09,null,null,null,null,null,"","",null,null,null,null,null,null,null,null,null,null,null,null,null,null,"NG_EA"]
["AFRICA","Nigeria","Egina",27.3,0.17,null,null,null,null,null,"","",null,null,null,null,null,null,null,null,null,null,null,null,null,null,"NG_EGA"]
["AFRICA","Nigeria","ERHA",31.7,0.21,null,null,null,null,null,"","",null,null,null,null,null,null,null,null,null,null,null,null,null,null,"NG_ERHA"]
["AFRICA","Nigeria","Escravos",36.200000000000003,0.1,null,null,null,null,null,"","",null,null,null,null,null,null,null,null,null,null,null,null,null,null,"NG_ESC"]
["AFRICA","Nigeria","Forcados Blend",29.7,0.3,null,null,null,null,null,"","",null,null,null,null,null,null,null,null,null,null,null,null,null,null,"NG_FOR_BLN"]
["AFRICA","Nigeria","Odudu","NA","NA",null,null,null,null,null,"","",null,null,null,null,null,null,null,null,null,null,null,null,null,null,"NG_ODU"]
["AFRICA","Nigeria","Okono",41.9,0.06,null,null,null,null,null,"","",null,null,null,null,null,null,null,null,null,null,null,null,null,null,"NG_OKN"]
["AFRICA","Nigeria","Okoro",36.799999999999997,0.18,null,null,null,null,null,"","",null,null,null,null,null,null,null,null,null,null,null,null,null,null,"NG_OKO"]
["AFRICA","Nigeria","Okwori",36.9,0.18,null,null,null,null,null,"","",null,null,null,null,null,null,null,null,null,null,null,null,null,null,"NG_OKW"]
["AFRICA","Nigeria","Okwuibome",24.2,0.4,null,null,null,null,null,"","",null,null,null,null,null,null,null,null,null,null,null,null,null,null,"NG_OKB"]
["AFRICA","Nigeria","Otakikpo",42.5,0.3,null,null,null,null,null,"","",null,null,null,null,null,null,null,null,null,null,null,null,null,null,"NG_OTK"]
["AFRICA","Nigeria","Pennington",36.6,0.1,null,null,null,null,null,"","",null,null,null,null,null,null,null,null,null,null,null,null,null,null,"NG_PEN"]
["AFRICA","Nigeria","Qua Iboe",35.799999999999997,0.1,null,null,null,null,null,"","",null,null,null,null,null,null,null,null,null,null,null,null,null,null,"NG_QIB"]
["AFRICA","Nigeria","Ukpokiti",42.3,0.01,null,null,null,null,null,"","",null,null,null,null,null,null,null,null,null,null,null,null,null,null,"NG_UKP"]
["AFRICA","Nigeria","Usan",29,0.27300000000000002,null,null,null,null,null,"","",null,null,null,null,null,null,null,null,null,null,null,null,null,null,"NG_USA"]
["AFRICA","Nigeria","Yoho",39.6,6.2E-2,null,null,null,null,null,"","",null,null,null,null,null,null,null,null,null,null,null,null,null,null,"NG_YHO"]
["AFRICA","Nigeria","Nigeria Miscellaneous","NA","NA",null,null,null,null,null,"","",null,null,null,null,null,null,null,null,null,null,null,null,null,null,"NG_MSC"]
["AFRICA","Senegal","SNE","NA","NA",null,null,null,null,null,"","",null,null,null,null,null,null,null,null,null,null,null,null,null,null,"SN_SNE"]
["AFRICA","Senegal","Senegal Miscellaneous","NA","NA",null,null,null,null,null,"","",null,null,null,null,null,null,null,null,null,null,null,null,null,null,"SN_MSC"]
["AFRICA","South Africa","Saldanha B","NA","NA",null,null,null,null,null,"","",null,null,null,null,null,null,null,null,null,null,null,null,null,null,"ZA_SAL"]
["AFRICA","South Africa","South Africa Miscellaneous","NA","NA",null,null,null,null,null,"","",null,null,null,null,null,null,null,null,null,null,null,null,null,null,"ZA_MSC"]
["AFRICA","South Sudan","South Sudan Miscellaneous","NA","NA",null,null,null,null,null,"","",null,null,null,null,null,null,null,null,null,null,null,null,null,null,"SS_MSC"]
["AFRICA","Sudan","Sudan Miscellaneous","NA","NA",null,null,null,null,null,"","",null,null,null,null,null,null,null,null,null,null,null,null,null,null,"SD_MSC"]
["AFRICA","Tunisia","Ashtart",29,1,null,null,null,null,null,"","",null,null,null,null,null,null,null,null,null,null,null,null,null,null,"TN_ASH"]
["AFRICA","Tunisia","El Borma",43.3,0.1,null,null,null,null,null,"","",null,null,null,null,null,null,null,null,null,null,null,null,null,null,"TN_EBM"]
["AFRICA","Tunisia","Ezzaouia-2",41.5,"NA",null,null,null,null,null,"","",null,null,null,null,null,null,null,null,null,null,null,null,null,null,"TN_EZZ2"]
["AFRICA","Tunisia","Helm 4","NA","NA",null,null,null,null,null,"","",null,null,null,null,null,null,null,null,null,null,null,null,null,null,"TN_HLM4"]
["AFRICA","Tunisia","Miska","NA","NA",null,null,null,null,null,"","",null,null,null,null,null,null,null,null,null,null,null,null,null,null,"TN_MKA"]
["AFRICA","Tunisia","Rhemoura ",33,1,null,null,null,null,null,"","",null,null,null,null,null,null,null,null,null,null,null,null,null,null,"TN_RHE"]
["AFRICA","Tunisia","Rhemoura and Zarzaitine melange  ","NA","NA",null,null,null,null,null,"","",null,null,null,null,null,null,null,null,null,null,null,null,null,null,"TN_RHE_ZRZ"]
["AFRICA","Tunisia","Zarzaitine",41.9,0.1,null,null,null,null,null,"","",null,null,null,null,null,null,null,null,null,null,null,null,null,null,"TN_ZRZ"]
["AFRICA","Tunisia","Tunisia Miscellaneous","NA","NA",null,null,null,null,null,"","",null,null,null,null,null,null,null,null,null,null,null,null,null,null,"TN_MSC"]
["AFRICA","Uganda","Tilenga","NA","NA",null,null,null,null,null,"","",null,null,null,null,null,null,null,null,null,null,null,null,null,null,"UG_TIL"]
["AFRICA","Uganda","Uganda Miscellaneous","NA","NA",null,null,null,null,null,"","",null,null,null,null,null,null,null,null,null,null,null,null,null,null,"UG_MSC"]
["AFRICA","Other Africa",null,"NA","NA",null,null,null,null,null,"","",null,null,null,null,null,null,null,null,null,null,null,null,null,null,"OTH_AFR"]
["ASIA","Brunei","Champion",24.4,0.1,null,null,null,null,null,"","",null,null,null,null,null,null,null,null,null,null,null,null,null,null,"BN_CHP"]
["ASIA","Brunei","Seria ",38,0.08,null,null,null,null,null,"","",null,null,null,null,null,null,null,null,null,null,null,null,null,null,"BN_SER"]
["ASIA","Brunei","Brunei Miscellaneous","NA","NA",null,null,null,null,null,"","",null,null,null,null,null,null,null,null,null,null,null,null,null,null,"BN_MSC"]
["ASIA","China","Peng Lai",21.8,0.28999999999999998,null,null,null,null,null,"","",null,null,null,null,null,null,null,null,null,null,null,null,null,null,"CN_PLI"]
["ASIA","China","Wei Zhou",39.9,"NA",null,null,null,null,null,"","",null,null,null,null,null,null,null,null,null,null,null,null,null,null,"CN_WZU"]
["ASIA","China","China Miscellaneous","NA","NA",null,null,null,null,null,"","",null,null,null,null,null,null,null,null,null,null,null,null,null,null,"CN_MSC"]
["ASIA","India","India Miscellaneous","NA","NA",null,null,null,null,null,"","",null,null,null,null,null,null,null,null,null,null,null,null,null,null,"IN_MSC"]
["ASIA","Indonesia","Duri",21.5,0.2,null,null,null,null,null,"","",null,null,null,null,null,null,null,null,null,null,null,null,null,null,"ID_DUR"]
["ASIA","Indonesia","Indonesia Miscellaneous","NA","NA",null,null,null,null,null,"","",null,null,null,null,null,null,null,null,null,null,null,null,null,null,"ID_MSC"]
["ASIA","Malaysia","Labuan Blend",33.200000000000003,0.1,null,null,null,null,null,"","",null,null,null,null,null,null,null,null,null,null,null,null,null,null,"MY_LBU_BLN"]
["ASIA","Malaysia","Miri Light",36.299999999999997,0.1,null,null,null,null,null,"","",null,null,null,null,null,null,null,null,null,null,null,null,null,null,"MY_MYY_LGHT"]
["ASIA","Malaysia","Tapis EOR",44.3,4.3999999999999997E-2,null,null,null,null,null,"","",null,null,null,null,null,null,null,null,null,null,null,null,null,null,"MY_TAP_EOR"]
["ASIA","Malaysia","Malaysia Miscellaneous","NA","NA",null,null,null,null,null,"","",null,null,null,null,null,null,null,null,null,null,null,null,null,null,"MY_MSC"]
["ASIA","Philippines","Philippines Miscellaneous","NA","NA",null,null,null,null,null,"","",null,null,null,null,null,null,null,null,null,null,null,null,null,null,"PH_MSC"]
["ASIA","Singapore","Singapore Miscellaneous","NA","NA",null,null,null,null,null,"","",null,null,null,null,null,null,null,null,null,null,null,null,null,null,"SG_MSC"]
["ASIA","Thailand","Bualuang",27,0.03,null,null,null,null,null,"","",null,null,null,null,null,null,null,null,null,null,null,null,null,null,"TH_BLG"]
["ASIA","Thailand","Thailand Miscellaneous","NA","NA",null,null,null,null,null,{"$f":"IF(I146<>0,ROUND(J146/I146,3),\"\")","v":""},{"$f":"IF(OR(G146=\"\",G146=0),\"\",ROUND(1/((G146+131.5)/(141.5*0.159))*I146,3))","v":""},null,null,null,null,null,null,null,null,null,null,null,null,null,null,"TH_MSC"]
["ASIA","Uzbekistan","Uzbekistan Miscellaneous","NA","NA",null,null,null,null,null,"","",null,null,null,null,null,null,null,null,null,null,null,null,null,null,"UZ_MSC"]
["ASIA","Vietnam","Bach Ho (White Tiger)",38.6,0,null,null,null,null,null,"","",null,null,null,null,null,null,null,null,null,null,null,null,null,null,"VN_BHO"]
["ASIA","Vietnam","Dai Hung (Big Bear)",36.9,0.1,null,null,null,null,null,"","",null,null,null,null,null,null,null,null,null,null,null,null,null,null,"VN_DHG"]
["ASIA","Vietnam","Rang Dong",37.700000000000003,0.5,null,null,null,null,null,"","",null,null,null,null,null,null,null,null,null,null,null,null,null,null,"VN_RDG"]
["ASIA","Vietnam","Ruby",35.6,0.08,null,null,null,null,null,"","",null,null,null,null,null,null,null,null,null,null,null,null,null,null,"VN_RUB"]
["ASIA","Vietnam","Su Tu Den (Black Lion)",36.799999999999997,0.05,null,null,null,null,null,"","",null,null,null,null,null,null,null,null,null,null,null,null,null,null,"VN_STD"]
["ASIA","Vietnam","Vietnam Miscellaneous","NA","NA",null,null,null,null,null,"","",null,null,null,null,null,null,null,null,null,null,null,null,null,null,"VN_MSC"]
["ASIA","Other Asia",null,"NA","NA",null,null,null,null,null,"","",null,null,null,null,null,null,null,null,null,null,null,null,null,null,"OTH_ASI"]
["AUSTRALIA AND OCEANIA","Australia","Barrow Island",36.799999999999997,0.1,null,null,null,null,null,"","",null,null,null,null,null,null,null,null,null,null,null,null,null,null,"AU_BWB"]
["AUSTRALIA AND OCEANIA","Australia","Cossack",48.2,0.04,null,null,null,null,null,"","",null,null,null,null,null,null,null,null,null,null,null,null,null,null,"AU_COS"]
["AUSTRALIA AND OCEANIA","Australia","Enfield",21.7,0.13,null,null,null,null,null,"","",null,null,null,null,null,null,null,null,null,null,null,null,null,null,"AU_EFD"]
["AUSTRALIA AND OCEANIA","Australia","Australia Miscellaneous","NA","NA",null,null,null,null,null,"","",null,null,null,null,null,null,null,null,null,null,null,null,null,null,"AU_MSC"]
["AUSTRALIA AND OCEANIA","Papua New Guinea","Kutubu",44,0.04,null,null,null,null,null,"","",null,null,null,null,null,null,null,null,null,null,null,null,null,null,"PG_KTB"]
["AUSTRALIA AND OCEANIA","Papua New Guinea","Papua New Guinea Miscellaneous","NA","NA",null,null,null,null,null,"","",null,null,null,null,null,null,null,null,null,null,null,null,null,null,"PG_MSC"]
["AUSTRALIA AND OCEANIA","Other Australia and Oceania",null,"NA","NA",null,null,null,null,null,"","",null,null,null,null,null,null,null,null,null,null,null,null,null,null,"OTH_AUS_OCE"]
["EUROPE","Albania","Patos Marinza",9.91,5.64,null,null,null,null,null,"","",null,null,null,null,null,null,null,null,null,null,null,null,null,null,"AL_PAT_MAR"]
["EUROPE","Albania","Albania Miscellaneous","NA","NA",null,null,null,null,null,"","",null,null,null,null,null,null,null,null,null,null,null,null,null,null,"AL_MSC"]
["EUROPE","Armenia","Armenian Miscellaneous","NA","NA",null,null,null,null,null,"","",null,null,null,null,null,null,null,null,null,null,null,null,null,null,"AM_MSC"]
["EUROPE","Austria","Austria Miscellaneous","NA","NA",null,null,null,null,null,"","",null,null,null,null,null,null,null,null,null,null,null,null,null,null,"AT_MSC"]
["EUROPE","Azerbaijan","Azeri BTC",38.200000000000003,0.17,null,null,null,null,null,"","",null,null,null,null,null,null,null,null,null,null,null,null,null,null,"AZ_AZR_BTC"]
["EUROPE","Azerbaijan","Azeri Light",34.799999999999997,0.15,null,null,null,null,null,"","",null,null,null,null,null,null,null,null,null,null,null,null,null,null,"AZ_AZR_LGHT"]
["EUROPE","Azerbaijan","Azeri Supsa",35.299999999999997,0.15,null,null,null,null,null,"","",null,null,null,null,null,null,null,null,null,null,null,null,null,null,"AZ_AZR_SUP"]
["EUROPE","Azerbaijan","Azerbaijan Miscellaneous","NA","NA",null,null,null,null,null,"","",null,null,null,null,null,null,null,null,null,null,null,null,null,null,"AZ_MSC"]
["EUROPE","Belarus","Belarus Miscellaneous","NA","NA",null,null,null,null,null,"","",null,null,null,null,null,null,null,null,null,null,null,null,null,null,"BY_MSC"]
["EUROPE","Bulgaria","Bulgaria Miscellaneous","NA","NA",null,null,null,null,null,"","",null,null,null,null,null,null,null,null,null,null,null,null,null,null,"BG_MSC"]
["EUROPE","Croatia","Croatia Miscellaneous","NA","NA",null,null,null,null,null,"","",null,null,null,null,null,null,null,null,null,null,null,null,null,null,"HR_MSC"]
["EUROPE","Czech Republic","Czech Republic Miscellaneous","NA","NA",null,null,null,null,null,"","",null,null,null,null,null,null,null,null,null,null,null,null,null,null,"CZ_MSC"]
["EUROPE","Denmark","Dan",30.4,0.3,null,null,null,null,null,"","",null,null,null,null,null,null,null,null,null,null,null,null,null,null,"DK_DAN"]
["EUROPE","Denmark","Danish North Sea",34.5,0.26,null,null,null,null,null,"","",null,null,null,null,null,null,null,null,null,null,null,null,null,null,"DK_DNS"]
["EUROPE","Denmark","Gorm",33.9,0.2,null,null,null,null,null,"","",null,null,null,null,null,null,null,null,null,null,null,null,null,null,"DK_GRM"]
["EUROPE","Denmark","South Arne",37.71,2.2400000000000002,null,null,null,null,null,"","",null,null,null,null,null,null,null,null,null,null,null,null,null,null,"DK_STH_ARN"]
["EUROPE","Denmark","Denmark Miscellaneous","NA","NA",null,null,null,null,null,"","",null,null,null,null,null,null,null,null,null,null,null,null,null,null,"DK_MSC"]
["EUROPE","France","France Miscellaneous","NA","NA",null,null,null,null,null,"","",null,null,null,null,null,null,null,null,null,null,null,null,null,null,"FR_MSC"]
["EUROPE","Georgia","Georgian Miscellaneous","NA","NA",null,null,null,null,null,"","",null,null,null,null,null,null,null,null,null,null,null,null,null,null,"GE_MSC"]
["EUROPE","Germany","Roherdoel Herbertshausen","NA","NA",null,null,null,null,null,"","",null,null,null,null,null,null,null,null,null,null,null,null,null,null,"DE_ROH_HBS"]
["EUROPE","Germany","Germany Miscellaneous","NA","NA",null,null,null,null,null,"","",null,null,null,null,null,null,null,null,null,null,null,null,null,null,"DE_MSC"]
["EUROPE","Greece","Greece Miscellaneous","NA","NA",null,null,null,null,null,"","",null,null,null,null,null,null,null,null,null,null,null,null,null,null,"GR_MSC"]
["EUROPE","Hungary","Hungary Miscellaneous","NA","NA",null,null,null,null,null,"","",null,null,null,null,null,null,null,null,null,null,null,null,null,null,"HU_MSC"]
["EUROPE","Italy","Gela","NA","NA",null,null,null,null,null,"","",null,null,null,null,null,null,null,null,null,null,null,null,null,null,"IT_GEL"]
["EUROPE","Italy","Prezioso","NA","NA",null,null,null,null,null,"","",null,null,null,null,null,null,null,null,null,null,null,null,null,null,"IT_PRZ"]
["EUROPE","Italy","Rospo Mare",11,4.7,null,null,null,null,null,"","",null,null,null,null,null,null,null,null,null,null,null,null,null,null,"IT_ROS_MAR"]
["EUROPE","Italy","Tempa Ross",12,4.5,null,null,null,null,null,"","",null,null,null,null,null,null,null,null,null,null,null,null,null,null,"IT_TMP_ROS"]
["EUROPE","Italy","Vega",18.3,2.4,null,null,null,null,null,"","",null,null,null,null,null,null,null,null,null,null,null,null,null,null,"IT_VEG"]
["EUROPE","Italy","Italy Miscellaneous","NA","NA",null,null,null,null,null,"","",null,null,null,null,null,null,null,null,null,null,null,null,null,null,"IT_MSC"]
["EUROPE","Kazakhstan","CPC Blend",44.2,0.54,null,null,null,null,null,"","",null,null,null,null,null,null,null,null,null,null,null,null,null,null,"KZ_CPC_BLN"]
["EUROPE","Kazakhstan","KEBCO Blend",31,2,null,null,null,null,null,"","",null,null,null,null,null,null,null,null,null,null,null,null,null,null,"KZ_KEB_BLN"]
["EUROPE","Kazakhstan","Siberian light",37.799999999999997,0.4,null,null,null,null,null,"","",null,null,null,null,null,null,null,null,null,null,null,null,null,null,"KZ_SIB_LGHT"]
["EUROPE","Kazakhstan","Urals",31,2,null,null,null,null,null,"","",null,null,null,null,null,null,null,null,null,null,null,null,null,null,"KZ_URL"]
["EUROPE","Kazakhstan","Kazakhstan Miscellaneous","NA","NA",null,null,null,null,null,"","",null,null,null,null,null,null,null,null,null,null,null,null,null,null,"KZ_MSC"]
["EUROPE","Lithuania","Lithuania Miscellaneous","NA","NA",null,null,null,null,null,"","",null,null,null,null,null,null,null,null,null,null,null,null,null,null,"LT_MSC"]
["EUROPE","Moldova","Moldova Miscellaneous","NA","NA",null,null,null,null,null,"","",null,null,null,null,null,null,null,null,null,null,null,null,null,null,"MD_MSC"]
["EUROPE","Netherlands","Netherlands Miscellaneous","NA","NA",null,null,null,null,null,"","",null,null,null,null,null,null,null,null,null,null,null,null,null,null,"NL_MSC"]
["EUROPE","Norway","Aasgard",48.5,0.18,null,null,null,null,null,"","",null,null,null,null,null,null,null,null,null,null,null,null,null,null,"NO_AGD"]
["EUROPE","Norway","Aasta Hansteen",45,0.02,null,null,null,null,null,"","",null,null,null,null,null,null,null,null,null,null,null,null,null,null,"NO_ATH"]
["EUROPE","Norway","Alvheim",34.5,0.18,null,null,null,null,null,"","",null,null,null,null,null,null,null,null,null,null,null,null,null,null,"NO_ALV"]
["EUROPE","Norway","Balder",27,0.64,null,null,null,null,null,"","",null,null,null,null,null,null,null,null,null,null,null,null,null,null,"NO_BAL"]
["EUROPE","Norway","Draugen",39.6,0.15,null,null,null,null,null,"","",null,null,null,null,null,null,null,null,null,null,null,null,null,null,"NO_DRA"]
["EUROPE","Norway","Ekofisk",43.4,0.2,null,null,null,null,null,"","",null,null,null,null,null,null,null,null,null,null,null,null,null,null,"NO_EFK"]
["EUROPE","Norway","Gina Krog",34,0.38,null,null,null,null,null,"","",null,null,null,null,null,null,null,null,null,null,null,null,null,null,"NO_GIN_KRG"]
["EUROPE","Norway","Goliat",39,0.19,null,null,null,null,null,"","",null,null,null,null,null,null,null,null,null,null,null,null,null,null,"NO_GOL"]
["EUROPE","Norway","Grane",30.7,0.56999999999999995,null,null,null,null,null,"","",null,null,null,null,null,null,null,null,null,null,null,null,null,null,"NO_GRA"]
["EUROPE","Norway","Gudrun",50.7,8.5999999999999993E-2,null,null,null,null,null,"","",null,null,null,null,null,null,null,null,null,null,null,null,null,null,"NO_GUD"]
["EUROPE","Norway","Gullfaks",28.6,0.4,null,null,null,null,null,"","",null,null,null,null,null,null,null,null,null,null,null,null,null,null,"NO_GLS"]
["EUROPE","Norway","Heidrun",29,0.52,null,null,null,null,null,{"$f":"IF(I210<>0,ROUND(J210/I210,3),\"\")","v":""},{"$f":"IF(OR(G210=\"\",G210=0),\"\",ROUND(1/((G210+131.5)/(141.5*0.159))*I210,3))","v":""},null,null,null,null,null,null,null,null,null,null,null,null,null,null,"NO_HEI"]
["EUROPE","Norway","Johan Castberg","NA","NA",null,null,null,null,null,"","",null,null,null,null,null,null,null,null,null,null,null,null,null,null,"NO_JOH_CAS"]
["EUROPE","Norway","Johan Sverdrup",28.7,0.81,null,null,null,null,null,"","",null,null,null,null,null,null,null,null,null,null,null,null,null,null,"NO_JOH_SVE"]
["EUROPE","Norway","Knarr",37,7.0000000000000007E-2,null,null,null,null,null,"","",null,null,null,null,null,null,null,null,null,null,null,null,null,null,"NO_KNA"]
["EUROPE","Norway","Martin Linge",30.2,0.18,null,null,null,null,null,"","",null,null,null,null,null,null,null,null,null,null,null,null,null,null,"NO_MAR_LGE"]
["EUROPE","Norway","Norne",32,0.19,null,null,null,null,null,"","",null,null,null,null,null,null,null,null,null,null,null,null,null,null,"NO_NNE"]
["EUROPE","Norway","Ormen Lange","NA","NA",null,null,null,null,null,"","",null,null,null,null,null,null,null,null,null,null,null,null,null,null,"NO_ORM_LAN"]
["EUROPE","Norway","Oseberg",32.5,0.2,null,null,null,null,null,"","",null,null,null,null,null,null,null,null,null,null,null,null,null,null,"NO_OBG"]
["EUROPE","Norway","Siri",37.5,0.22,null,null,null,null,null,"","",null,null,null,null,null,null,null,null,null,null,null,null,null,null,"NO_SIR"]
["EUROPE","Norway","Skarv",48.5,0.1,null,null,null,null,null,"","",null,null,null,null,null,null,null,null,null,null,null,null,null,null,"NO_SKA"]
["EUROPE","Norway","Statfjord",38.4,0.3,null,null,null,null,null,"","",null,null,null,null,null,null,null,null,null,null,null,null,null,null,"NO_STD"]
["EUROPE","Norway","Tor",42,0.1,null,null,null,null,null,"","",null,null,null,null,null,null,null,null,null,null,null,null,null,null,"NO_TOR"]
["EUROPE","Norway","Troll",28.3,0.31,null,null,null,null,null,"","",null,null,null,null,null,null,null,null,null,null,null,null,null,null,"NO_TLL"]
["EUROPE","Norway","Yme",38,0.18,null,null,null,null,null,"","",null,null,null,null,null,null,null,null,null,null,null,null,null,null,"NO_YME"]
["EUROPE","Norway","Norway Miscellaneous","NA","NA",null,null,null,null,null,"","",null,null,null,null,null,null,null,null,null,null,null,null,null,null,"NO_MSC"]
["EUROPE","Poland","Debno","NA","NA",null,null,null,null,null,"","",null,null,null,null,null,null,null,null,null,null,null,null,null,null,"PL_DEB"]
["EUROPE","Poland","Lubjatov","NA","NA",null,null,null,null,null,"","",null,null,null,null,null,null,null,null,null,null,null,null,null,null,"PL_LUB"]
["EUROPE","Poland ","Poland Miscellaneous","NA","NA",null,null,null,null,null,"","",null,null,null,null,null,null,null,null,null,null,null,null,null,null,"PL_MSC"]
["EUROPE","Romania","Romania Miscellaneous","NA","NA",null,null,null,null,null,"","",null,null,null,null,null,null,null,null,null,null,null,null,null,null,"RO_MSC"]
["EUROPE","Russia","CPC",44.2,0.54,null,null,null,null,null,"","",null,null,null,null,null,null,null,null,null,null,null,null,null,null,"RU_CPC"]
["EUROPE","Russia","ESPO blend",36,0.5,null,null,null,null,null,"","",null,null,null,null,null,null,null,null,null,null,null,null,null,null,"RU_ESPO_BLN"]
["EUROPE","Russia","Novy Port",35,0.1,null,null,null,null,null,"","",null,null,null,null,null,null,null,null,null,null,null,null,null,null,"RU_NOV_PRT"]
["EUROPE","Russia","Siberian Light",37.799999999999997,0.4,null,null,null,null,null,"","",null,null,null,null,null,null,null,null,null,null,null,null,null,null,"RU_SIB_LGHT"]
["EUROPE","Russia","Sokol",39.700000000000003,0.18,null,null,null,null,null,"","",null,null,null,null,null,null,null,null,null,null,null,null,null,null,"RU_SOL"]
["EUROPE","Russia","Urals",31,2,null,null,null,null,null,"","",null,null,null,null,null,null,null,null,null,null,null,null,null,null,"RU_URL"]
["EUROPE","Russia","Varandey",35.6,0.71,null,null,null,null,null,"","",null,null,null,null,null,null,null,null,null,null,null,null,null,null,"RU_VAR"]
["EUROPE","Russia","Russia Miscellaneous","NA","NA",null,null,null,null,null,"","",null,null,null,null,null,null,null,null,null,null,null,null,null,null,"RU_MSC"]
["EUROPE","Serbia ","Serbia Miscellaneous","NA","NA",null,null,null,null,null,"","",null,null,null,null,null,null,null,null,null,null,null,null,null,null,"RS_MSC"]
["EUROPE","Slovakia","Slovakia Miscellaneous","NA","NA",null,null,null,null,null,"","",null,null,null,null,null,null,null,null,null,null,null,null,null,null,"SK_MSC"]
["EUROPE","Spain","Spain Miscellaneous","NA","NA",null,null,null,null,null,"","",null,null,null,null,null,null,null,null,null,null,null,null,null,null,"ES_MSC"]
["EUROPE","Turkey","Turkish Miscellaneous","NA","NA",null,null,null,null,null,"","",null,null,null,null,null,null,null,null,null,null,null,null,null,null,"TR_MSC"]
["EUROPE","Ukraine","Ukraine Miscellaneous","NA","NA",null,null,null,null,null,"","",null,null,null,null,null,null,null,null,null,null,null,null,null,null,"UA_MSC"]
["EUROPE","United Kingdom","Alba",19.2,1.33,null,null,null,null,null,"","",null,null,null,null,null,null,null,null,null,null,null,null,null,null,"UK_ABA"]
["EUROPE","United Kingdom","Anasuria",39.700000000000003,0.31,null,null,null,null,null,"","",null,null,null,null,null,null,null,null,null,null,null,null,null,null,"UK_ANA"]
["EUROPE","United Kingdom","Argyle",38.6,0.2,null,null,null,null,null,"","",null,null,null,null,null,null,null,null,null,null,null,null,null,null,"UK_GYL"]
["EUROPE","United Kingdom","Auk",37.200000000000003,0.5,null,null,null,null,null,"","",null,null,null,null,null,null,null,null,null,null,null,null,null,null,"UK_AUK"]
["EUROPE","United Kingdom","Beryl",36.5,0.4,null,null,null,null,null,"","",null,null,null,null,null,null,null,null,null,null,null,null,null,null,"UK_BRL"]
["EUROPE","United Kingdom","Brae",33.6,0.7,null,null,null,null,null,"","",null,null,null,null,null,null,null,null,null,null,null,null,null,null,"UK_BRA"]
["EUROPE","United Kingdom","Brent",38.6,0.42,null,null,null,null,null,"","",null,null,null,null,null,null,null,null,null,null,null,null,null,null,"UK_BRT"]
["EUROPE","United Kingdom","Captain",19.100000000000001,0.7,null,null,null,null,null,"","",null,null,null,null,null,null,null,null,null,null,null,null,null,null,"UK_CPT"]
["EUROPE","United Kingdom","Catcher crude",30,0.3,null,null,null,null,null,"","",null,null,null,null,null,null,null,null,null,null,null,null,null,null,"UK_CAT"]
["EUROPE","United Kingdom","Clair ",23.5,0.46,null,null,null,null,null,"","",null,null,null,null,null,null,null,null,null,null,null,null,null,null,"UK_CLA"]
["EUROPE","United Kingdom","Claymore",30.5,1.6,null,null,null,null,null,"","",null,null,null,null,null,null,null,null,null,null,null,null,null,null,"UK_CLM"]
["EUROPE","United Kingdom","Cormorant ","NA","NA",null,null,null,null,null,"","",null,null,null,null,null,null,null,null,null,null,null,null,null,null,"UK_COR"]
["EUROPE","United Kingdom","Dumbarton crude",40.200000000000003,0.28000000000000003,null,null,null,null,null,"","",null,null,null,null,null,null,null,null,null,null,null,null,null,null,"UK_DBT"]
["EUROPE","United Kingdom","Flotta",35.700000000000003,1.1000000000000001,null,null,null,null,null,"","",null,null,null,null,null,null,null,null,null,null,null,null,null,null,"UK_FLH"]
["EUROPE","United Kingdom","Forties",36.6,0.3,null,null,null,null,null,"","",null,null,null,null,null,null,null,null,null,null,null,null,null,null,"UK_FTI"]
["EUROPE","United Kingdom","Harding",20.7,0.59,null,null,null,null,null,"","",null,null,null,null,null,null,null,null,null,null,null,null,null,null,"UK_HDG"]
["EUROPE","United Kingdom","Lancaster crude",38,0.4,null,null,null,null,null,"","",null,null,null,null,null,null,null,null,null,null,null,null,null,null,"UK_LCT"]
["EUROPE","United Kingdom","Magnus",39.299999999999997,0.3,null,null,null,null,null,"","",null,null,null,null,null,null,null,null,null,null,null,null,null,null,"UK_MGS"]
["EUROPE","United Kingdom","Mariner crude",14.9,1.08,null,null,null,null,null,"","",null,null,null,null,null,null,null,null,null,null,null,null,null,null,"UK_MAR"]
["EUROPE","United Kingdom","Ninian Blend",35.6,0.4,null,null,null,null,null,"","",null,null,null,null,null,null,null,null,null,null,null,null,null,null,"UK_NNN_BLN"]
["EUROPE","United Kingdom","Penguin","NA","NA",null,null,null,null,null,"","",null,null,null,null,null,null,null,null,null,null,null,null,null,null,"UK_PGU"]
["EUROPE","United Kingdom","Piper",35.6,0.9,null,null,null,null,null,"","",null,null,null,null,null,null,null,null,null,null,null,null,null,null,"UK_PPR"]
["EUROPE","United Kingdom","Schiehallion",25.8,0.43,null,null,null,null,null,"","",null,null,null,null,null,null,null,null,null,null,null,null,null,null,"UK_SHL"]
["EUROPE","United Kingdom","Triton",37.5,0.32,null,null,null,null,null,"","",null,null,null,null,null,null,null,null,null,null,null,null,null,null,"UK_TRI"]
["EUROPE","United Kingdom","Western isles crude",32,1,null,null,null,null,null,"","",null,null,null,null,null,null,null,null,null,null,null,null,null,null,"UK_WES_ISL"]
["EUROPE","United Kingdom","Wytch Farm",41.5,0.12,null,null,null,null,null,"","",null,null,null,null,null,null,null,null,null,null,null,null,null,null,"UK_WYF"]
["EUROPE","United Kingdom","United Kingdon Miscellaneous","NA","NA",null,null,null,null,null,"","",null,null,null,null,null,null,null,null,null,null,null,null,null,null,"UK_MSC"]
["EUROPE","Other Europe",null,"NA","NA",null,null,null,null,null,"","",null,null,null,null,null,null,null,null,null,null,null,null,null,null,"OTH_EUR"]
["LATIN AMERICA","Argentina","Canadon Seco",27,0.2,null,null,null,null,null,"","",null,null,null,null,null,null,null,null,null,null,null,null,null,null,"AG_CDS"]
["LATIN AMERICA","Argentina","Escalante",24,0.2,null,null,null,null,null,"","",null,null,null,null,null,null,null,null,null,null,null,null,null,null,"AG_ECL"]
["LATIN AMERICA","Argentina","Hidra",51.7,0.05,null,null,null,null,null,"","",null,null,null,null,null,null,null,null,null,null,null,null,null,null,"AG_HDR"]
["LATIN AMERICA","Argentina","Medanito",34.93,0.48,null,null,null,null,null,"","",null,null,null,null,null,null,null,null,null,null,null,null,null,null,"AG_MED"]
["LATIN AMERICA","Argentina","Argentina Miscellaneous","NA","NA",null,null,null,null,null,{"$f":"IF(I274<>0,ROUND(J274/I274,3),\"\")","v":""},{"$f":"IF(OR(G274=\"\",G274=0),\"\",ROUND(1/((G274+131.5)/(141.5*0.159))*I274,3))","v":""},null,null,null,null,null,null,null,null,null,null,null,null,null,null,"AG_MSC"]
["LATIN AMERICA","Belize","Belize Miscellaneous","NA","NA",null,null,null,null,null,"","",null,null,null,null,null,null,null,null,null,null,null,null,null,null,"BZ_MSC"]
["LATIN AMERICA","Bolivia","Bolivian Miscellaneous","NA","NA",null,null,null,null,null,"","",null,null,null,null,null,null,null,null,null,null,null,null,null,null,"BO_AZ_MSC"]
["LATIN AMERICA","Brazil","Albacora East",19.8,0.52,null,null,null,null,null,"","",null,null,null,null,null,null,null,null,null,null,null,null,null,null,"BR_ACE"]
["LATIN AMERICA","Brazil","Atapu",28.3,0.37,null,null,null,null,null,"","",null,null,null,null,null,null,null,null,null,null,null,null,null,null,"BR_ATP"]
["LATIN AMERICA","Brazil","Bauna",33.200000000000003,0.24,null,null,null,null,null,"","",null,null,null,null,null,null,null,null,null,null,null,null,null,null,"BR_BAU"]
["LATIN AMERICA","Brazil","Brazil Polvo",19.600000000000001,1.1399999999999999,null,null,null,null,null,"","",null,null,null,null,null,null,null,null,null,null,null,null,null,null,"BR_PLV"]
["LATIN AMERICA","Brazil","Buzios",28.4,0.31,null,null,null,null,null,"","",null,null,null,null,null,null,null,null,null,null,null,null,null,null,"BR_BUZ"]
["LATIN AMERICA","Brazil","Campos Basin",20,0.77,null,null,null,null,null,"","",null,null,null,null,null,null,null,null,null,null,null,null,null,null,"BR_CMB"]
["LATIN AMERICA","Brazil","Frade",19.5,0.5,null,null,null,null,null,"","",null,null,null,null,null,null,null,null,null,null,null,null,null,null,"BR_FRA"]
["LATIN AMERICA","Brazil","Jubarte Heavy",17,0.56999999999999995,null,null,null,null,null,"","",null,null,null,null,null,null,null,null,null,null,null,null,null,null,"BR_JUB_HVY"]
["LATIN AMERICA","Brazil","Lapa",22.7,0.56999999999999995,null,null,null,null,null,"","",null,null,null,null,null,null,null,null,null,null,null,null,null,null,"BR_LAP"]
["LATIN AMERICA","Brazil","Lula",30.5,0.38,null,null,null,null,null,"","",null,null,null,null,null,null,null,null,null,null,null,null,null,null,"BR_LUL"]
["LATIN AMERICA","Brazil","Marlim",20,0.77,null,null,null,null,null,"","",null,null,null,null,null,null,null,null,null,null,null,null,null,null,"BR_MLM"]
["LATIN AMERICA","Brazil","Mero",28.8,0.32,null,null,null,null,null,"","",null,null,null,null,null,null,null,null,null,null,null,null,null,null,"BR_MER"]
["LATIN AMERICA","Brazil","Peregrino ",13.5,1.83,null,null,null,null,null,"","",null,null,null,null,null,null,null,null,null,null,null,null,null,null,"BR_PER"]
["LATIN AMERICA","Brazil","Roncador",28.3,0.57999999999999996,null,null,null,null,null,"","",null,null,null,null,null,null,null,null,null,null,null,null,null,null,"BR_RCR"]
["LATIN AMERICA","Brazil","Sapinhoa",29.8,0.39,null,null,null,null,null,"","",null,null,null,null,null,null,null,null,null,null,null,null,null,null,"BR_SAP"]
["LATIN AMERICA","Brazil","Sepia",27.2,0.4,null,null,null,null,null,"","",null,null,null,null,null,null,null,null,null,null,null,null,null,null,"BR_SEP"]
["LATIN AMERICA","Brazil","Sururu",28.3,0.35,null,null,null,null,null,"","",null,null,null,null,null,null,null,null,null,null,null,null,null,null,"BR_SUR"]
["LATIN AMERICA","Brazil","Tubarao",23,0.13,null,null,null,null,null,"","",null,null,null,null,null,null,null,null,null,null,null,null,null,null,"BR_TUB"]
["LATIN AMERICA","Brazil","Tupi (Lula)",30.5,0.35,null,null,null,null,null,"","",null,null,null,null,null,null,null,null,null,null,null,null,null,null,"BR_TUP"]
["LATIN AMERICA","Brazil","Urucu (Upper Amazon)",42,"NA",null,null,null,null,null,"","",null,null,null,null,null,null,null,null,null,null,null,null,null,null,"BR_URU_AMZ_UP"]
["LATIN AMERICA","Brazil","Brazil Miscellaneous","NA","NA",null,null,null,null,null,"","",null,null,null,null,null,null,null,null,null,null,null,null,null,null,"BR_MSC"]
["LATIN AMERICA","Chile","Chile Miscellaneous","NA","NA",null,null,null,null,null,"","",null,null,null,null,null,null,null,null,null,null,null,null,null,null,"CL_MSC"]
["LATIN AMERICA","Colombia","Acordionero ",19,1,null,null,null,null,null,"","",null,null,null,null,null,null,null,null,null,null,null,null,null,null,"CO_ACD"]
["LATIN AMERICA","Colombia","Cano-Limon",30.8,0.5,null,null,null,null,null,"","",null,null,null,null,null,null,null,null,null,null,null,null,null,null,"CO_CLM"]
["LATIN AMERICA","Colombia","Castilla Blend",20.8,1.72,null,null,null,null,null,"","",null,null,null,null,null,null,null,null,null,null,null,null,null,null,"CO_CST_BLN"]
["LATIN AMERICA","Colombia","Cusiana",44.4,0.2,null,null,null,null,null,"","",null,null,null,null,null,null,null,null,null,null,null,null,null,null,"CO_CSN"]
["LATIN AMERICA","Colombia","Mares Blend",18.5,2,null,null,null,null,null,"","",null,null,null,null,null,null,null,null,null,null,null,null,null,null,"CO_MRS_BLN"]
["LATIN AMERICA","Colombia","Suria",32,"NA",null,null,null,null,null,"","",null,null,null,null,null,null,null,null,null,null,null,null,null,null,"CO_SUR"]
["LATIN AMERICA","Colombia","Vasconia",27.3,0.6,null,null,null,null,null,"","",null,null,null,null,null,null,null,null,null,null,null,null,null,null,"CO_VCN"]
["LATIN AMERICA","Colombia","Colombia Miscellaneous","NA","NA",null,null,null,null,null,"","",null,null,null,null,null,null,null,null,null,null,null,null,null,null,"CO_MSC"]
["LATIN AMERICA","Ecuador","Limoncoha-1",28,"NA",null,null,null,null,null,"","",null,null,null,null,null,null,null,null,null,null,null,null,null,null,"EC_LNA1"]
["LATIN AMERICA","Ecuador","Oriente",29.2,1,null,null,null,null,null,"","",null,null,null,null,null,null,null,null,null,null,null,null,null,null,"EC_ORT"]
["LATIN AMERICA","Ecuador","Ecuador Miscellaneous","NA","NA",null,null,null,null,null,"","",null,null,null,null,null,null,null,null,null,null,null,null,null,null,"EC_MSC"]
["LATIN AMERICA","Guatemala","Guatemala Miscellaneous","NA","NA",null,null,null,null,null,"","",null,null,null,null,null,null,null,null,null,null,null,null,null,null,"GT_MSC"]
["LATIN AMERICA","Guyana","Liza",32.9,0.51,null,null,null,null,null,"","",null,null,null,null,null,null,null,null,null,null,null,null,null,null,"GY_LIZ"]
["LATIN AMERICA","Guyana","Stabroek","NA","NA",null,null,null,null,null,"","",null,null,null,null,null,null,null,null,null,null,null,null,null,null,"GY_STB"]
["LATIN AMERICA","Guyana","Unity Gold ",35.299999999999997,0.42,null,null,null,null,null,"","",null,null,null,null,null,null,null,null,null,null,null,null,null,null,"GY_UTG"]
["LATIN AMERICA","Guyana","Guyana Miscellaneous","NA","NA",null,null,null,null,null,"","",null,null,null,null,null,null,null,null,null,null,null,null,null,null,"GY_MSC"]
["LATIN AMERICA","Mexico","Isthmus",32.799999999999997,1.5,null,null,null,null,null,"","",null,null,null,null,null,null,null,null,null,null,null,null,null,null,"MX_IST"]
["LATIN AMERICA","Mexico","Maya",22,3.3,null,null,null,null,null,"","",null,null,null,null,null,null,null,null,null,null,null,null,null,null,"MX_MYA"]
["LATIN AMERICA","Mexico","Mexico Miscellaneous","NA","NA",null,null,null,null,null,"","",null,null,null,null,null,null,null,null,null,null,null,null,null,null,"MX_MSC"]
["LATIN AMERICA","Peru","Peru Miscellaneous","NA","NA",null,null,null,null,null,"","",null,null,null,null,null,null,null,null,null,null,null,null,null,null,"PE_MSC"]
["LATIN AMERICA","Trinidad and Tobago","Calypso Miscellaneous",30.84,0.59,null,null,null,null,null,"","",null,null,null,null,null,null,null,null,null,null,null,null,null,null,"TT_CPO_MSC"]
["LATIN AMERICA","Trinidad and Tobago","Galeota Mix",32.799999999999997,0.3,null,null,null,null,null,"","",null,null,null,null,null,null,null,null,null,null,null,null,null,null,"TT_GAL_MIX"]
["LATIN AMERICA","Trinidad and Tobago","Molo crude",21.2,1.56,null,null,null,null,null,"","",null,null,null,null,null,null,null,null,null,null,null,null,null,null,"TT_MOL_CRD"]
["LATIN AMERICA","Trinidad and Tobago","Trinidad and Tobago Miscellaneous","NA","NA",null,null,null,null,null,"","",null,null,null,null,null,null,null,null,null,null,null,null,null,null,"TT_MSC"]
["LATIN AMERICA","Venezuela","Boscan",10.1,5.5,null,null,null,null,null,"","",null,null,null,null,null,null,null,null,null,null,null,null,null,null,"VE_BCN"]
["LATIN AMERICA","Venezuela","Carabobo ","NA","NA",null,null,null,null,null,"","",null,null,null,null,null,null,null,null,null,null,null,null,null,null,"VE_CBB"]
["LATIN AMERICA","Venezuela","Corocoro",24,2.5499999999999998,null,null,null,null,null,"","",null,null,null,null,null,null,null,null,null,null,null,null,null,null,"VE_CRC"]
["LATIN AMERICA","Venezuela","Hamaca",26,1.55,null,null,null,null,null,"","",null,null,null,null,null,null,null,null,null,null,null,null,null,null,"VE_HAM"]
["LATIN AMERICA","Venezuela","Leona",24.1,1.5,null,null,null,null,null,"","",null,null,null,null,null,null,null,null,null,null,null,null,null,null,"VE_LON"]
["LATIN AMERICA","Venezuela","Merey",17.399999999999999,2.2000000000000002,null,null,null,null,null,"","",null,null,null,null,null,null,null,null,null,null,null,null,null,null,"VE_MRY"]
["LATIN AMERICA","Venezuela","Morichal",10.6,2.78,null,null,null,null,null,"","",null,null,null,null,null,null,null,null,null,null,null,null,null,null,"VE_MOR"]
["LATIN AMERICA","Venezuela","Venezuela Miscellaneous","NA","NA",null,null,null,null,null,"","",null,null,null,null,null,null,null,null,null,null,null,null,null,null,"VE_MSC"]
["LATIN AMERICA","Other Latin America",null,"NA","NA",null,null,null,null,null,"","",null,null,null,null,null,null,null,null,null,null,null,null,null,null,"OTH_LA"]
["MIDDLE   EAST","Abu Dhabi","Murban",40.5,0.8,null,null,null,null,null,"","",null,null,null,null,null,null,null,null,null,null,null,null,null,null,"AE_AZ_MRB"]
["MIDDLE   EAST","Abu Dhabi","Umm Shaif (Abu Dhabi Marine)",37.4,1.5,null,null,null,null,null,"","",null,null,null,null,null,null,null,null,null,null,null,null,null,null,"AE_AZ_USH_MAR"]
["MIDDLE   EAST","Abu Dhabi","Upper Zakum",34.4,1.7,null,null,null,null,null,"","",null,null,null,null,null,null,null,null,null,null,null,null,null,null,"AE_AZ_UP_ZKM"]
["MIDDLE   EAST","Abu Dhabi","Zakum (Lower Zakum/Abu Dhabi Marine)",40.6,1,null,null,null,null,null,"","",null,null,null,null,null,null,null,null,null,null,null,null,null,null,"AE_AZ_ZKM"]
["MIDDLE   EAST","Abu Dhabi","Abu Dhabi Miscellaneous","NA","NA",null,null,null,null,null,"","",null,null,null,null,null,null,null,null,null,null,null,null,null,null,"AE_AZ_MSC"]
["MIDDLE   EAST","Bahrain","Bahrain Miscellaneous","NA","NA",null,null,null,null,null,"","",null,null,null,null,null,null,null,null,null,null,null,null,null,null,"BH_MSC"]
["MIDDLE   EAST","Dubai","Dubai (Fateh)",31.1,2,null,null,null,null,null,{"$f":"IF(I338<>0,ROUND(J338/I338,3),\"\")","v":""},{"$f":"IF(OR(G338=\"\",G338=0),\"\",ROUND(1/((G338+131.5)/(141.5*0.159))*I338,3))","v":""},null,null,null,null,null,null,null,null,null,null,null,null,null,null,"AE_DU_FT"]
["MIDDLE   EAST","Dubai","Dubai Miscellaneous","NA","NA",null,null,null,null,null,"","",null,null,null,null,null,null,null,null,null,null,null,null,null,null,"AE_DU_MSC"]
["MIDDLE   EAST","Iran","Foroozan (Fereidoon)",31.3,2.5,null,null,null,null,null,"","",null,null,null,null,null,null,null,null,null,null,null,null,null,null,"IR_FRZ"]
["MIDDLE   EAST","Iran","Iranian Heavy",31,1.7,null,null,null,null,null,"","",null,null,null,null,null,null,null,null,null,null,null,null,null,null,"IR_HVY"]
["MIDDLE   EAST","Iran","Iranian Light",33.799999999999997,1.4,null,null,null,null,null,"","",null,null,null,null,null,null,null,null,null,null,null,null,null,null,"IR_LGHT"]
["MIDDLE   EAST","Iran","Iran Miscellaneous","NA","NA",null,null,null,null,null,"","",null,null,null,null,null,null,null,null,null,null,null,null,null,null,"IR_MSC"]
["MIDDLE   EAST","Iraq","Basrah Heavy",24.7,3.5,null,null,null,null,null,"","",null,null,null,null,null,null,null,null,null,null,null,null,null,null,"IQ_BAS_HVY"]
["MIDDLE   EAST","Iraq","Basrah Medium",31.1,2.6,null,null,null,null,null,"","",null,null,null,null,null,null,null,null,null,null,null,null,null,null,"IQ_BAS_MED"]
["MIDDLE   EAST","Iraq","Kirkuk Blend (Pers. Gulf)",35.1,2,null,null,null,null,null,"","",null,null,null,null,null,null,null,null,null,null,null,null,null,null,"IQ_KIK_BLN_PG"]
["MIDDLE   EAST","Iraq","KTB Blend","NA","NA",null,null,null,null,null,"","",null,null,null,null,null,null,null,null,null,null,null,null,null,null,"IQ_KTB_BLN"]
["MIDDLE   EAST","Iraq","Iraq Miscellaneous","NA","NA",null,null,null,null,null,"","",null,null,null,null,null,null,null,null,null,null,null,null,null,null,"IQ_MSC"]
["MIDDLE   EAST","Kuwait","Mina al Ahmadi (Kuwait Export)",31.4,2.5,null,null,null,null,null,"","",null,null,null,null,null,null,null,null,null,null,null,null,null,null,"KW_MEA_EXP"]
["MIDDLE   EAST","Kuwait","Kuwait Miscellaneous","NA","NA",null,null,null,null,null,"","",null,null,null,null,null,null,null,null,null,null,null,null,null,null,"KW_MSC"]
["MIDDLE   EAST","Neutral Zone","Burgan (Wafra)",23.3,3.4,null,null,null,null,null,"","",null,null,null,null,null,null,null,null,null,null,null,null,null,null,"NT_BG_WF"]
["MIDDLE   EAST","Neutral Zone","Khafji",28.5,2.9,null,null,null,null,null,"","",null,null,null,null,null,null,null,null,null,null,null,null,null,null,"NT_KFI"]
["MIDDLE   EAST","Neutral Zone","Neutral Zone Miscellaneous","NA","NA",null,null,null,null,null,"","",null,null,null,null,null,null,null,null,null,null,null,null,null,null,"NT_MSC"]
["MIDDLE   EAST","Oman","Oman Miscellaneous","NA","NA",null,null,null,null,null,"","",null,null,null,null,null,null,null,null,null,null,null,null,null,null,"OM_MSC"]
["MIDDLE   EAST","Qatar","Dukhan",41.7,1.3,null,null,null,null,null,"","",null,null,null,null,null,null,null,null,null,null,null,null,null,null,"QA_DHN"]
["MIDDLE   EAST","Qatar","Qatar Miscellaneous","NA","NA",null,null,null,null,null,"","",null,null,null,null,null,null,null,null,null,null,null,null,null,null,"QA_MSC"]
["MIDDLE   EAST","Ras Al Khaimah","Ras Al Khaimah Miscellaneous","NA","NA",null,null,null,null,null,"","",null,null,null,null,null,null,null,null,null,null,null,null,null,null,"AE_RK_MSC"]
["MIDDLE   EAST","Saudi Arabia","Arab Light",33,1.77,null,null,null,null,null,"","",null,null,null,null,null,null,null,null,null,null,null,null,null,null,"SA_ARB_LGHT"]
["MIDDLE   EAST","Saudi Arabia","Arab Extra Light",40,1.0900000000000001,null,null,null,null,null,"","",null,null,null,null,null,null,null,null,null,null,null,null,null,null,"SA_ARB_XLGHT"]
["MIDDLE   EAST","Saudi Arabia","Arab Heavy",28,2.8,null,null,null,null,null,"","",null,null,null,null,null,null,null,null,null,null,null,null,null,null,"SA_ARB_HVY"]
["MIDDLE   EAST","Saudi Arabia","Arab Medium",31,2.5499999999999998,null,null,null,null,null,"","",null,null,null,null,null,null,null,null,null,null,null,null,null,null,"SA_ARB_MED"]
["MIDDLE   EAST","Saudi Arabia","Saudi Arabia Miscellaneous","NA","NA",null,null,null,null,null,"","",null,null,null,null,null,null,null,null,null,null,null,null,null,null,"SA_MSC"]
["MIDDLE   EAST","Sharjah","Sharjah Miscellaneous","NA","NA",null,null,null,null,null,"","",null,null,null,null,null,null,null,null,null,null,null,null,null,null,"AE_SH_MSC"]
["MIDDLE   EAST","Syria","Souedie",24.9,3.8,null,null,null,null,null,"","",null,null,null,null,null,null,null,null,null,null,null,null,null,null,"SY_SOU"]
["MIDDLE   EAST","Syria","Syria Miscellaneous","NA","NA",null,null,null,null,null,"","",null,null,null,null,null,null,null,null,null,null,null,null,null,null,"SY_MSC"]
["MIDDLE   EAST","Yemen","Alif",40.4,0.1,null,null,null,null,null,"","",null,null,null,null,null,null,null,null,null,null,null,null,null,null,"YE_ALF"]
["MIDDLE   EAST","Yemen","Maarib Lt.",49,0.2,null,null,null,null,null,"","",null,null,null,null,null,null,null,null,null,null,null,null,null,null,"YE_MIB_LGHT"]
["MIDDLE   EAST","Yemen","North Yemeni Blend",40.5,"NA",null,null,null,null,null,"","",null,null,null,null,null,null,null,null,null,null,null,null,null,null,"YE_YAR_BLN"]
["MIDDLE   EAST","Yemen","Shabwa Blend",34.6,0.6,null,null,null,null,null,"","",null,null,null,null,null,null,null,null,null,null,null,null,null,null,"YE_SBW_BLN"]
["MIDDLE   EAST","Yemen","Yemen Miscellaneous","NA","NA",null,null,null,null,null,"","",null,null,null,null,null,null,null,null,null,null,null,null,null,null,"YE_MSC"]
["MIDDLE   EAST","Other Middle East",null,"NA","NA",null,null,null,null,null,"","",null,null,null,null,null,null,null,null,null,null,null,null,null,null,"OTH_ME"]
["NORTH AMERICA","Canada","Access Western Blend",22,4.0199999999999996,null,null,null,null,null,"","",null,null,null,null,null,null,null,null,null,null,null,null,null,null,"CA_ACC_W_BLN"]
["NORTH AMERICA","Canada","Christina Lake",20.5,3,null,null,null,null,null,"","",null,null,null,null,null,null,null,null,null,null,null,null,null,null,"CA_CLK"]
["NORTH AMERICA","Canada","Cold Lake",13.2,4.0999999999999996,null,null,null,null,null,"","",null,null,null,null,null,null,null,null,null,null,null,null,null,null,"CA_CLD_LK"]
["NORTH AMERICA","Canada","Hebron blend crude",20.399999999999999,0.78700000000000003,null,null,null,null,null,"","",null,null,null,null,null,null,null,null,null,null,null,null,null,null,"CA_HBR_BLN"]
["NORTH AMERICA","Canada","Hibernia",37.299999999999997,0.37,null,null,null,null,null,"","",null,null,null,null,null,null,null,null,null,null,null,null,null,null,"CA_HIB"]
["NORTH AMERICA","Canada","Syncrude Mildred Lake/Aurora",32,0.1,null,null,null,null,null,"","",null,null,null,null,null,null,null,null,null,null,null,null,null,null,"CA_SCR_MLK"]
["NORTH AMERICA","Canada","Terra Nova",32.299999999999997,0.53,null,null,null,null,null,"","",null,null,null,null,null,null,null,null,null,null,null,null,null,null,"CA_TER"]
["NORTH AMERICA","Canada","White Rose",31,0.31,null,null,null,null,null,"","",null,null,null,null,null,null,null,null,null,null,null,null,null,null,"CA_WRS"]
["NORTH AMERICA","Canada","Canada Miscellaneous","NA","NA",null,null,null,null,null,"","",null,null,null,null,null,null,null,null,null,null,null,null,null,null,"CA_MSC"]
["NORTH AMERICA","US","Bakken",43.3,7.0000000000000007E-2,null,null,null,null,null,"","",null,null,null,null,null,null,null,null,null,null,null,null,null,null,"US_BKK"]
["NORTH AMERICA","US","Eagle Ford",45,0.2,null,null,null,null,null,"","",null,null,null,null,null,null,null,null,null,null,null,null,null,null,"US_EGF"]
["NORTH AMERICA","US","Heavy Louisiana Sweet",33.5,0.42,null,null,null,null,null,"","",null,null,null,null,null,null,null,null,null,null,null,null,null,null,"US_HVY_LUI_SWT"]
["NORTH AMERICA","US","Light Louisiana Sweet",38.5,0.39,null,null,null,null,null,"","",null,null,null,null,null,null,null,null,null,null,null,null,null,null,"US_LGHT_LUI_SWT"]
["NORTH AMERICA","US","Mars",29.4,1.92,null,null,null,null,null,"","",null,null,null,null,null,null,null,null,null,null,null,null,null,null,"US_MRS"]
["NORTH AMERICA","US","Niobrara",39,0.39,null,null,null,null,null,"","",null,null,null,null,null,null,null,null,null,null,null,null,null,null,"US_NBR"]
["NORTH AMERICA","US","Other LTO","NA","NA",null,null,null,null,null,"","",null,null,null,null,null,null,null,null,null,null,null,null,null,null,"US_OLTO"]
["NORTH AMERICA","US","Permian","NA","NA",null,null,null,null,null,"","",null,null,null,null,null,null,null,null,null,null,null,null,null,null,"US_PER"]
["NORTH AMERICA","US","Poseidon",29.1,1.94,null,null,null,null,null,"","",null,null,null,null,null,null,null,null,null,null,null,null,null,null,"US_POS"]
["NORTH AMERICA","US","WTI",40.799999999999997,0.45,null,null,null,null,null,"","",null,null,null,null,null,null,null,null,null,null,null,null,null,null,"US_WTI"]
["NORTH AMERICA","US","US Miscellaneous","NA","NA",null,null,null,null,null,"","",null,null,null,null,null,null,null,null,null,null,null,null,null,null,"US_MSC"]
["NORTH AMERICA","Other North America",null,"NA","NA",null,null,null,null,null,"","",null,null,null,null,null,null,null,null,null,null,null,null,null,null,"OTH_NA"]
["NOT SPECIFIED","Not specified","Unknown","NA","NA",null,null,null,null,null,"","",null,null,null,null,null,null,null,null,null,null,null,null,null,null,"NONSPEC"]
["Total imports","TOTAL IMPORTS",null,"NA","NA",null,{"$f":"IF(I394<>0,ROUND(SUMPRODUCT(G16:G393,I16:I393)/I394,3),\"\")","v":""},{"$f":"IF(I394<>0,ROUND(SUMPRODUCT(H16:H393,I16:I393)/I394,3),\"\")","v":""},{"$f":"SUM(I16:I393)","v":0},{"$f":"SUM(J16:J393)","v":0},"",{"$f":"SUM(L16:L393)","v":0},null,null,null,null,null,null,null,null,null,null,null,null,null,null,"TOTCRUDIMP"]
[]
[]
[]
[]
[]
[]
[]
[]
[]
[]
[]
[]
[]
[]
[]
[]
[]
[]
[]
[]
[]
[]
[]
[]
[]
[]
[]
[]
[]
[]
[]
[]
[]
[]
[]
[]
[]
[]
[]
[]
[]
[]
[]
[]
[]
[]
[]
[]
[]
[]
[]
[]
[]
[]
[]
[]
[]
[]
[]
[]
[]
[]
[]
[]
[]
[]
[]
[]
[]
[]
[]
[]
[]
[]
[]
[]
[]
[]
[]
[]
[]
[]
[]
[]
[]
[]
[]
[]
[]
[]
[]
[]
[]
[]
[]
[]
[]
[]
[]
[]
[]
[]
[]
[]
[null,null,"Item1 è","API_TYP","SULF_TYP","NR_COMP","API_GRAVITY","SULPHUR","VOLUME","PRICE","AVGPRICE","WEIGHT"]

{"sheet":"Table 2","index":2,"n_rows":88,"n_cols":27,"rows_kept":88,"cut":false,"hidden":true,"merged":[[16,1,16,2],[7,3,7,4],[16,3,16,4],[7,1,7,2]]}
["Table 2 CRUDE OIL SUPPLY"]
["Country",{"$f":"CountryUser","v":"(select country)"}]
["Month of data",{"$f":"FirstMonth","v":"January"},{"$f":"QuestYear","v":2023}]
[]
[]
[null,null,null,null,null,null,null,null,null,null,null,null,null,null,null,null,null,null,null,null,null,null,null,null,null,null,"Datatype"]
["Table 2.1: Crude oil imports price",null,null,null,null,null,null,null,null,null,null,null,null,null,null,null,null,null,null,null,null,null,null,null,null,null,"FLOW"]
[null,"Total imports",null,"Average CIF price"]
[null,"1000 barrels","1000 tonnes","per barrel","per tonne",null,null,null,null,null,null,null,null,null,null,null,null,null,null,null,null,null,null,null,null,null,"Product ê"]
["Crude oil imports price",{"$f":"'Table 1'!$I$394","v":0},{"$f":"'Table 1'!$L$394","v":0},{"$f":"'Table 1'!$K$394","v":""},{"$f":"IF('Table 1'!$L$394<>0,ROUND('Table 1'!$J$394/'Table 1'!$L$394,3),\"\")","v":""},null,null,null,null,null,null,null,null,null,null,null,null,null,null,null,null,null,null,null,null,null,"TOTCRUDIMP"]
[]
[]
[]
[]
[]
["Table 2.2: Crude oil production price"]
[null,"Total production",null,"Average CIF price"]
[null,"1000 barrels","1000 tonnes","per barrel","per tonne"]
["Crude oil production price",null,null,null,null,null,null,null,null,null,null,null,null,null,null,null,null,null,null,null,null,null,null,null,null,null,"TOTCRUDPROD"]
[]
[]
[]
[]
[]
[]
[]
[]
[]
[]
[]
[]
[]
[]
[]
[]
[]
[]
[]
[]
[]
[]
[]
[]
[]
[]
[]
[]
[]
[]
[]
[]
[]
[]
[]
[]
[]
[]
[]
[]
[]
[]
[]
[]
[]
[]
[]
[]
[]
[]
[]
[]
[]
[]
[]
[]
[]
[]
[]
[]
[]
[]
[]
[]
[]
[]
[]
[]
["Item1 è","VOLUME","WEIGHT","AVGPRICE","PRICE_TON"]

{"sheet":"Remarks","index":3,"n_rows":43,"n_cols":35,"rows_kept":43,"cut":false,"hidden":false,"merged":[]}
[null,null,null,null,null,null,null,null,null,null,null,null,null,null,null,null,null,null,null,null,null,null,null,null,null,null,null,null,null,null,null,null,null,null,"Datatype"]
[null,null,{"$f":"\"COIR Remarks\"","v":"COIR Remarks"},null,null,null,null,null,null,null,null,null,null,null,null,null,null,null,null,null,null,null,null,null,null,null,null,null,null,null,null,null,null,null,"REMARKS"]
[null,null,null,null,null,null,null,null,null,null,null,null,null,null,null,null,null,null,null,null,null,null,null,null,null,null,null,null,null,null,null,null,null,null,"Item1 ê"]
[null,null,null,null,null,null,null,null,null,null,null,null,null,null,null,null,null,null,null,null,null,null,null,null,null,null,null,null,null,null,null,null,null,null,"REMROW01"]
[null,null,null,null,null,null,null,null,null,null,null,null,null,null,null,null,null,null,null,null,null,null,null,null,null,null,null,null,null,null,null,null,null,null,"REMROW02"]
[null,null,null,null,null,null,null,null,null,null,null,null,null,null,null,null,null,null,null,null,null,null,null,null,null,null,null,null,null,null,null,null,null,null,"REMROW03"]
[null,null,null,null,null,null,null,null,null,null,null,null,null,null,null,null,null,null,null,null,null,null,null,null,null,null,null,null,null,null,null,null,null,null,"REMROW04"]
[null,null,null,null,null,null,null,null,null,null,null,null,null,null,null,null,null,null,null,null,null,null,null,null,null,null,null,null,null,null,null,null,null,null,"REMROW05"]
[null,null,null,null,null,null,null,null,null,null,null,null,null,null,null,null,null,null,null,null,null,null,null,null,null,null,null,null,null,null,null,null,null,null,"REMROW06"]
[null,null,null,null,null,null,null,null,null,null,null,null,null,null,null,null,null,null,null,null,null,null,null,null,null,null,null,null,null,null,null,null,null,null,"REMROW07"]
[null,null,null,null,null,null,null,null,null,null,null,null,null,null,null,null,null,null,null,null,null,null,null,null,null,null,null,null,null,null,null,null,null,null,"REMROW08"]
[null,null,null,null,null,null,null,null,null,null,null,null,null,null,null,null,null,null,null,null,null,null,null,null,null,null,null,null,null,null,null,null,null,null,"REMROW09"]
[null,null,null,null,null,null,null,null,null,null,null,null,null,null,null,null,null,null,null,null,null,null,null,null,null,null,null,null,null,null,null,null,null,null,"REMROW10"]
[null,null,null,null,null,null,null,null,null,null,null,null,null,null,null,null,null,null,null,null,null,null,null,null,null,null,null,null,null,null,null,null,null,null,"REMROW11"]
[null,null,null,null,null,null,null,null,null,null,null,null,null,null,null,null,null,null,null,null,null,null,null,null,null,null,null,null,null,null,null,null,null,null,"REMROW12"]
[null,null,null,null,null,null,null,null,null,null,null,null,null,null,null,null,null,null,null,null,null,null,null,null,null,null,null,null,null,null,null,null,null,null,"REMROW13"]
[null,null,null,null,null,null,null,null,null,null,null,null,null,null,null,null,null,null,null,null,null,null,null,null,null,null,null,null,null,null,null,null,null,null,"REMROW14"]
[null,null,null,null,null,null,null,null,null,null,null,null,null,null,null,null,null,null,null,null,null,null,null,null,null,null,null,null,null,null,null,null,null,null,"REMROW15"]
[null,null,null,null,null,null,null,null,null,null,null,null,null,null,null,null,null,null,null,null,null,null,null,null,null,null,null,null,null,null,null,null,null,null,"REMROW16"]
[null,null,null,null,null,null,null,null,null,null,null,null,null,null,null,null,null,null,null,null,null,null,null,null,null,null,null,null,null,null,null,null,null,null,"REMROW17"]
[null,null,null,null,null,null,null,null,null,null,null,null,null,null,null,null,null,null,null,null,null,null,null,null,null,null,null,null,null,null,null,null,null,null,"REMROW18"]
[null,null,null,null,null,null,null,null,null,null,null,null,null,null,null,null,null,null,null,null,null,null,null,null,null,null,null,null,null,null,null,null,null,null,"REMROW19"]
[null,null,null,null,null,null,null,null,null,null,null,null,null,null,null,null,null,null,null,null,null,null,null,null,null,null,null,null,null,null,null,null,null,null,"REMROW20"]
[null,null,null,null,null,null,null,null,null,null,null,null,null,null,null,null,null,null,null,null,null,null,null,null,null,null,null,null,null,null,null,null,null,null,"REMROW21"]
[null,null,null,null,null,null,null,null,null,null,null,null,null,null,null,null,null,null,null,null,null,null,null,null,null,null,null,null,null,null,null,null,null,null,"REMROW22"]
[null,null,null,null,null,null,null,null,null,null,null,null,null,null,null,null,null,null,null,null,null,null,null,null,null,null,null,null,null,null,null,null,null,null,"REMROW23"]
[null,null,null,null,null,null,null,null,null,null,null,null,null,null,null,null,null,null,null,null,null,null,null,null,null,null,null,null,null,null,null,null,null,null,"REMROW24"]
[null,null,null,null,null,null,null,null,null,null,null,null,null,null,null,null,null,null,null,null,null,null,null,null,null,null,null,null,null,null,null,null,null,null,"REMROW25"]
[null,null,null,null,null,null,null,null,null,null,null,null,null,null,null,null,null,null,null,null,null,null,null,null,null,null,null,null,null,null,null,null,null,null,"REMROW26"]
[null,null,null,null,null,null,null,null,null,null,null,null,null,null,null,null,null,null,null,null,null,null,null,null,null,null,null,null,null,null,null,null,null,null,"REMROW27"]
[null,null,null,null,null,null,null,null,null,null,null,null,null,null,null,null,null,null,null,null,null,null,null,null,null,null,null,null,null,null,null,null,null,null,"REMROW28"]
[null,null,null,null,null,null,null,null,null,null,null,null,null,null,null,null,null,null,null,null,null,null,null,null,null,null,null,null,null,null,null,null,null,null,"REMROW29"]
[null,null,null,null,null,null,null,null,null,null,null,null,null,null,null,null,null,null,null,null,null,null,null,null,null,null,null,null,null,null,null,null,null,null,"REMROW30"]
[null,null,null,null,null,null,null,null,null,null,null,null,null,null,null,null,null,null,null,null,null,null,null,null,null,null,null,null,null,null,null,null,null,null,"REMROW31"]
[null,null,null,null,null,null,null,null,null,null,null,null,null,null,null,null,null,null,null,null,null,null,null,null,null,null,null,null,null,null,null,null,null,null,"REMROW32"]
[null,null,null,null,null,null,null,null,null,null,null,null,null,null,null,null,null,null,null,null,null,null,null,null,null,null,null,null,null,null,null,null,null,null,"REMROW33"]
[null,null,null,null,null,null,null,null,null,null,null,null,null,null,null,null,null,null,null,null,null,null,null,null,null,null,null,null,null,null,null,null,null,null,"REMROW34"]
[null,null,null,null,null,null,null,null,null,null,null,null,null,null,null,null,null,null,null,null,null,null,null,null,null,null,null,null,null,null,null,null,null,null,"REMROW35"]
[null,null,null,null,null,null,null,null,null,null,null,null,null,null,null,null,null,null,null,null,null,null,null,null,null,null,null,null,null,null,null,null,null,null,"REMROW36"]
[null,null,null,null,null,null,null,null,null,null,null,null,null,null,null,null,null,null,null,null,null,null,null,null,null,null,null,null,null,null,null,null,null,null,"REMROW37"]
[null,null,null,null,null,null,null,null,null,null,null,null,null,null,null,null,null,null,null,null,null,null,null,null,null,null,null,null,null,null,null,null,null,null,"REMROW38"]
[null,null,null,null,null,null,null,null,null,null,null,null,null,null,null,null,null,null,null,null,null,null,null,null,null,null,null,null,null,null,null,null,null,null,"REMROW39"]
[null,null,null,null,null,null,null,null,null,null,null,null,null,null,null,null,null,null,null,null,null,null,null,null,null,null,null,null,null,null,null,null,null,null,"REMROW40"]

{"sheet":"Param","index":4,"n_rows":127,"n_cols":11,"rows_kept":127,"cut":false,"hidden":true,"merged":[[1,1,1,3]]}
[]
[null,"SETTINGS"]
[]
[]
[]
[]
[null,null,"ParamCountry / CountryList",null,null,"Is EU","Is Enc"]
[null,null,"(select country)","SELECT","00",0,0]
[null,null,"Albania","ALBANIA","AL",0,1]
[null,null,"Argentina","ARGENTINA","AR",0,0]
[null,null,"Armenia","ARMENIA","AM",0,1]
[null,null,"Australia","AUSTRALI","AU",0,0]
[null,null,"Austria","AUSTRIA","AT",1,0]
[null,null,"Azerbaijan","AZERBAIJAN","AZ",0,0]
[null,null,"Belarus","BELARUS","BY",0,1]
[null,null,"Belgium","BELGIUM","BE",1,0]
[null,null,"Bosnia and Herzegovina","BOSNIAHERZ","BA",0,1]
[null,null,"Brazil","BRAZIL","BR",0,0]
[null,null,"Bulgaria","BULGARIA","BG",1,0]
[null,null,"Canada","CANADA","CA",0,0]
[null,null,"Chile","CHILE","CL",0,0]
[null,null,"China, People's Republic of","CHINA","CN",0,0]
[null,null,"Colombia","COLOMBIA","CO",0,0]
[null,null,"Costa Rica","COSTARICA","CR",0,0]
[null,null,"Croatia","CROATIA","HR",1,0]
[null,null,"Cyprus","CYPRUS","CY",1,0]
[null,null,"Czech Republic","CZECH","CZ",1,0]
[null,null,"Denmark","DENMARK","DK",1,0]
[null,null,"Egypt","EGYPT","EG",0,0]
[null,null,"Estonia","ESTONIA","EE",1,0]
[null,null,"Finland","FINLAND","FI",1,0]
[null,null,"France","FRANCE","FR",1,0]
[null,null,"Georgia","GEORGIA","GE",0,1]
[null,null,"Germany","GERMANY","DE",1,0]
[null,null,"Greece","GREECE","GR",1,0]
[null,null,"Hungary","HUNGARY","HU",1,0]
[null,null,"Iceland","ICELAND","IS",0,0]
[null,null,"Ireland","IRELAND","IE",1,0]
[null,null,"India","INDIA","IN",0,0]
[null,null,"Indonesia","INDONESIA","ID",0,0]
[null,null,"Israel","ISRAEL","IL",0,0]
[null,null,"Italy","ITALY","IT",1,0]
[null,null,"Japan","JAPAN","JP",0,0]
[null,null,"Kazakhstan","KAZAKHSTAN","KZ",0,0]
[null,null,"Korea","KOREA","KR",0,0]
[null,null,"Kosovo* (under UNSCR 1244/99)","KOSOVO","XK",0,1]
[null,null,"Kyrgyzstan","KYRGYZSTAN","KG",0,0]
[null,null,"Latvia","LATVIA","LV",1,0]
[null,null,"Liechtenstein","LIECHTEN","LI",0,0]
[null,null,"Lithuania","LITHUANIA","LT",1,0]
[null,null,"Luxembourg","LUXEMBOU","LU",1,0]
[null,null,"Malta","MALTA","MT",1,0]
[null,null,"Mexico","MEXICO","MX",0,0]
[null,null,"Moldova","MOLDOVA","MD",0,1]
[null,null,"Montenegro","MONTENEGRO","ME",1,1]
[null,null,"Morocco","MOROCCO","MA",0,0]
[null,null,"Netherlands","NETHLAND","NL",1,0]
[null,null,"New Zealand","NZ","NZ",0,0]
[null,null,"North Macedonia","NORTHMACED","MK",1,1]
[null,null,"Norway","NORWAY","NO",0,0]
[null,null,"Peru","PERU","PE",0,0]
[null,null,"Poland","POLAND","PL",1,0]
[null,null,"Portugal","PORTUGAL","PT",1,0]
[null,null,"Romania","ROMANIA","RO",1,0]
[null,null,"Russia","RUSSIA","RU",0,0]
[null,null,"Serbia","SERBIA","RS",1,1]
[null,null,"Singapore","SINGAPORE","SG",0,0]
[null,null,"Slovak Republic","SLOVAKIA","SK",1,0]
[null,null,"Slovenia","SLOVENIA","SI",1,0]
[null,null,"South Africa","SOUTHAFRIC","ZA",0,0]
[null,null,"Spain","SPAIN","ES",1,0]
[null,null,"Sweden","SWEDEN","SE",1,0]
[null,null,"Switzerland","SWITLAND","CH",0,0]
[null,null,"Tajikistan","TAJIKISTAN","TJ",0,0]
[null,null,"Thailand","THAILAND","TH",0,0]
[null,null,"Tunisia","TUNISIA","TN",0,0]
[null,null,"Turkey","TURKEY","TR",1,0]
[null,null,"Ukraine","UKRAINE","UA",1,1]
[null,null,"United Kingdom","UK","GB",0,0]
[null,null,"United States","USA","US",0,0]
[]
[]
[]
[null,null,"ParamMonth / MonthList / MonthCodes"]
[null,null,"January","JAN"]
[null,null,"February","FEB"]
[null,null,"March","MAR"]
[null,null,"April","APR"]
[null,null,"May","MAY"]
[null,null,"June","JUN"]
[null,null,"July","JUL"]
[null,null,"August","AUG"]
[null,null,"September","SEP"]
[null,null,"October","OCT"]
[null,null,"November","NOV"]
[null,null,"December","DEC"]
[null,null,null,null,null,"ê","DO NOT TOUCH!",null,null,null,"ê"]
[]
[null,null,"MsgAfterRounding: ",true]
[]
[]
[null,"CALCULATIONS"]
[]
[]
[]
[null,null,"MonthIndex: ",{"$f":"MATCH(FirstMonth,MonthList,0)","v":1}]
[]
[null,null,"QuestMonth: ",{"$f":"INDEX(ParamMonth,MonthIndex,2)","v":"JAN"}]
[]
[null,null,"CountryIndex: ",{"$f":"IF(CountryUser=0,1,MATCH(CountryUser,CountryList,0))","v":1}]
[]
[null,null,"QuestCountry: ",{"$f":"INDEX(ParamCountry,D110,3)","v":"00"}]
[null,null,"CountryCode: ",{"$f":"INDEX(ParamCountry,D110,2)","v":"SELECT"}]
[null,null,"EU member:",{"$f":"INDEX(ParamCountry,D110,4)","v":0}]
[null,null,"EnC member:",{"$f":"INDEX(ParamCountry,D110,5)","v":0}]
[]
[null,null,"CsvMonth: ","MAY","Paste by VBA"]
[null,null,"CsvYear: ",2023,"Paste by VBA"]
[null,null,"PosiMonth: ",{"$f":"IF(ISERROR(MATCH(D117,MonthCodes,0)),100,MATCH(D117,MonthCodes,0))","v":5}]
[]
[null,null,"CsvCountry:","BELGIUM","Paste by VBA"]
[null,null,null,{"$f":"IF(ISERROR(MATCH(CsvCountry,CountryIeaList,0))=FALSE,MATCH(CsvCountry,CountryIeaList,0),IF(ISERROR(MATCH(CsvCountry,CountryIsoList,0))=FALSE,MATCH(CsvCountry,CountryIsoList,0),0))","v":9}]
[null,null,"CsvCountryName:",{"$f":"IF(ISERROR(INDEX(ParamCountry,D122,1)),\"UNKNOWN\",INDEX(ParamCountry,D122,1))","v":"Belgium"},"Read by VBA"]
[null,null,"CsvMonthName:",{"$f":"INDEX(MonthList,PosiMonth1,1)","v":"May"},"Read by VBA"]
[]
[null,null,"SumGas : ",{"$f":"SUM(DataT1)+SUM(DataT2)","v":0}]
[null,null,"CsvQuest","COIR"]

{"sheet":"Formulas","index":5,"n_rows":411,"n_cols":13,"rows_kept":411,"cut":false,"hidden":true,"merged":[[399,2,399,3],[399,4,399,5],[408,2,408,3],[408,4,408,5]]}
[]
[null,null,"Formulas backup for forms"]
[]
[null,"This sheet has been done in order to facilitate the maintenance of the formulas the user could erase: you must do it in this current sheet."]
[]
[]
[]
[null,"Table 1"]
[null,"Region","Country","Crude oil type","Typical\nAPI gravity (degrees)","Typical\nsulphur content (wt %)","Number of reporting companies","API Gravity","Sulphur content","Total\nvolume\n[1000 bbls]","Total\nprice\n[1000 $]","Average price\n[$/bbl]","Total weight [Ktonnes]"]
[null,"AFRICA","Algeria","Algerian Mix",45.6,0.2,null,null,null,null,null,{"$f":"IF(J10<>0,ROUND(K10/J10,3),\"\")","v":""},{"$f":"IF(OR(H10=\"\",H10=0),\"\",ROUND(1/((H10+131.5)/(141.5*0.159))*J10,3))","v":""}]
[null,"AFRICA","Algeria","Hassi Messaoud",42.8,0.2,null,null,null,null,null,{"$f":"IF(J11<>0,ROUND(K11/J11,3),\"\")","v":""},{"$f":"IF(OR(H11=\"\",H11=0),\"\",ROUND(1/((H11+131.5)/(141.5*0.159))*J11,3))","v":""}]
[null,"AFRICA","Algeria","Hassi Ramal","NA",0.1,null,null,null,null,null,{"$f":"IF(J12<>0,ROUND(K12/J12,3),\"\")","v":""},{"$f":"IF(OR(H12=\"\",H12=0),\"\",ROUND(1/((H12+131.5)/(141.5*0.159))*J12,3))","v":""}]
[null,"AFRICA","Algeria","Saharan Blend",45.5,0.1,null,null,null,null,null,{"$f":"IF(J13<>0,ROUND(K13/J13,3),\"\")","v":""},{"$f":"IF(OR(H13=\"\",H13=0),\"\",ROUND(1/((H13+131.5)/(141.5*0.159))*J13,3))","v":""}]
[null,"AFRICA","Algeria","Zarzaitine",43,0.1,null,null,null,null,null,"",""]
[null,"AFRICA","Algeria","Algeria Miscellaneous","NA","NA",null,null,null,null,null,"",""]
[null,"AFRICA","Angola","Cabaca SUR","NA","NA",null,null,null,null,null,"",""]
[null,"AFRICA","Angola","Clov",32.700000000000003,0.26,null,null,null,null,null,"",""]
[null,"AFRICA","Angola","Dalia",23.6,1.48,null,null,null,null,null,"",""]
[null,"AFRICA","Angola","Gimboa",23.7,0.65,null,null,null,null,null,"",""]
[null,"AFRICA","Angola","Girassol",30.2,0.34,null,null,null,null,null,"",""]
[null,"AFRICA","Angola","Greater Plutonio ","NA","NA",null,null,null,null,null,"",""]
[null,"AFRICA","Angola","Kissanje",30.5,0.37,null,null,null,null,null,"",""]
[null,"AFRICA","Angola","Malongo","NA","NA",null,null,null,null,null,"",""]
[null,"AFRICA","Angola","Mostarda crude",28.3,1.1200000000000001,null,null,null,null,null,"",""]
[null,"AFRICA","Angola","Nemba",38.5,0,null,null,null,null,null,"",""]
[null,"AFRICA","Angola","Palanca",40,0.14000000000000001,null,null,null,null,null,"",""]
[null,"AFRICA","Angola","Plutonio",33.200000000000003,0.37,null,null,null,null,null,"",""]
[null,"AFRICA","Angola","Takula",33.700000000000003,0.1,null,null,null,null,null,"",""]
[null,"AFRICA","Angola","Angola Miscellaneous","NA","NA",null,null,null,null,null,"",""]
[null,"AFRICA","Benin","Benin Miscellaneous","NA","NA",null,null,null,null,null,"",""]
[null,"AFRICA","Cameroon","Kole Marine Blend",34.9,0.3,null,null,null,null,null,"",""]
[null,"AFRICA","Cameroon","Lokele",21.5,0.5,null,null,null,null,null,"",""]
[null,"AFRICA","Cameroon","Cameroon Miscellaneous","NA","NA",null,null,null,null,null,"",""]
[null,"AFRICA","Chad","Doba Blend (Early Production)",24.8,0.14000000000000001,null,null,null,null,null,"",""]
[null,"AFRICA","Chad","Chad Miscellaneous","NA","NA",null,null,null,null,null,"",""]
[null,"AFRICA","Congo (Brazzaville)","Djeno Blend",26.9,0.3,null,null,null,null,null,"",""]
[null,"AFRICA","Congo (Brazzaville)","Nkossa",47,0.03,null,null,null,null,null,"",""]
[null,"AFRICA","Congo (Brazzaville)","Congo (Brazzaville) Miscellaneous","NA","NA",null,null,null,null,null,"",""]
[null,"AFRICA","Côte d'Ivoire","Espoir",31.4,0.3,null,null,null,null,null,"",""]
[null,"AFRICA","Côte d'Ivoire","Côte d'Ivoire Miscellaneous","NA","NA",null,null,null,null,null,"",""]
[null,"AFRICA","Egypt","Belayim",27.5,2.2000000000000002,null,null,null,null,null,"",""]
[null,"AFRICA","Egypt","Rhas Budran",25,"NA",null,null,null,null,null,"",""]
[null,"AFRICA","Egypt","Rhas Gharib",24.3,3.3,null,null,null,null,null,"",""]
[null,"AFRICA","Egypt","Zeit Bay",34.1,0.1,null,null,null,null,null,"",""]
[null,"AFRICA","Egypt","Egypt Miscellaneous","NA","NA",null,null,null,null,null,"",""]
[null,"AFRICA","Equatorial Guinea","Aseng","NA","NA",null,null,null,null,null,"",""]
[null,"AFRICA","Equatorial Guinea","Ceiba",30.1,0.42,null,null,null,null,null,"",""]
[null,"AFRICA","Equatorial Guinea","Zafiro",30.3,0.254,null,null,null,null,null,"",""]
[null,"AFRICA","Equatorial Guinea","Equatorial Guinea Miscellaneous","NA","NA",null,null,null,null,null,"",""]
[null,"AFRICA","Gabon","Dussafu","NA","NA",null,null,null,null,null,"",""]
[null,"AFRICA","Gabon","Etame Marin",36,"NA",null,null,null,null,null,"",""]
[null,"AFRICA","Gabon","Gamba",31.8,0.1,null,null,null,null,null,"",""]
[null,"AFRICA","Gabon","Lucina Marine",39.5,0.1,null,null,null,null,null,"",""]
[null,"AFRICA","Gabon","Mandji",30.5,1.3,null,null,null,null,null,"",""]
[null,"AFRICA","Gabon","Oguendjo",35,"NA",null,null,null,null,null,"",""]
[null,"AFRICA","Gabon","Olende",17.600000000000001,1.54,null,null,null,null,null,"",""]
[null,"AFRICA","Gabon","Rabi Blend",34,"NA",null,null,null,null,null,"",""]
[null,"AFRICA","Gabon","Rabi-Kouanga",34,0.6,null,null,null,null,null,"",""]
[null,"AFRICA","Gabon","Gabon Miscellaneous","NA","NA",null,null,null,null,null,"",""]
[null,"AFRICA","Ghana","Jubilee",36.4,0.26,null,null,null,null,null,"",""]
[null,"AFRICA","Ghana","Sankofa","NA","NA",null,null,null,null,null,"",""]
[null,"AFRICA","Ghana","Ghana Miscellaneous","NA","NA",null,null,null,null,null,"",""]
[null,"AFRICA","Kenya","South Lokichar","NA","NA",null,null,null,null,null,"",""]
[null,"AFRICA","Kenya","Kenya Miscellaneous","NA","NA",null,null,null,null,null,"",""]
[null,"AFRICA","Libya","Al Jurf",30.49,1.84,null,null,null,null,null,"",""]
[null,"AFRICA","Libya","Amna (high pour)",36.1,0.2,null,null,null,null,null,"",""]
[null,"AFRICA","Libya","Bouri","NA","NA",null,null,null,null,null,"",""]
[null,"AFRICA","Libya","Brega",40.4,0.2,null,null,null,null,null,"",""]
[null,"AFRICA","Libya","Bu Attifel",43.6,0,null,null,null,null,null,"",""]
[null,"AFRICA","Libya","El Sharara",42.1,7.0000000000000007E-2,null,null,null,null,null,"",""]
[null,"AFRICA","Libya","Es Sider",36.700000000000003,0.38,null,null,null,null,null,"",""]
[null,"AFRICA","Libya","Medium","NA","NA",null,null,null,null,null,"",""]
[null,"AFRICA","Libya","Mellitah","NA","NA",null,null,null,null,null,"",""]
[null,"AFRICA","Libya","Sarir",38.299999999999997,0.2,null,null,null,null,null,"",""]
[null,"AFRICA","Libya","Sirtica",43.3,0.43,null,null,null,null,null,"",""]
[null,"AFRICA","Libya","Wafa","NA","NA",null,null,null,null,null,{"$f":"IF(J76<>0,ROUND(K76/J76,3),\"\")","v":""},{"$f":"IF(OR(H76=\"\",H76=0),\"\",ROUND(1/((H76+131.5)/(141.5*0.159))*J76,3))","v":""}]
[null,"AFRICA","Libya","Zueitina",41.3,0.3,null,null,null,null,null,"",""]
[null,"AFRICA","Libya","Libya Miscellaneous","NA","NA",null,null,null,null,null,"",""]
[null,"AFRICA","Mauritania","Mauritania Miscellaneous","NA","NA",null,null,null,null,null,"",""]
[null,"AFRICA","Nigeria","Abo","NA","NA",null,null,null,null,null,"",""]
[null,"AFRICA","Nigeria","Agbami",47.2,4.3999999999999997E-2,null,null,null,null,null,"",""]
[null,"AFRICA","Nigeria","Akpo",45.17,0.06,null,null,null,null,null,"",""]
[null,"AFRICA","Nigeria","Amenam Blend",39,0.09,null,null,null,null,null,"",""]
[null,"AFRICA","Nigeria","Antan",35.200000000000003,"NA",null,null,null,null,null,"",""]
[null,"AFRICA","Nigeria","Anyala Madu","NA","NA",null,null,null,null,null,"",""]
[null,"AFRICA","Nigeria","Bonga",28.1,0.25,null,null,null,null,null,"",""]
[null,"AFRICA","Nigeria","Bonny Light",36.700000000000003,0.1,null,null,null,null,null,"",""]
[null,"AFRICA","Nigeria","Brass River",40.9,0.1,null,null,null,null,null,"",""]
[null,"AFRICA","Nigeria","EA",38,0.09,null,null,null,null,null,"",""]
[null,"AFRICA","Nigeria","Egina",27.3,0.17,null,null,null,null,null,"",""]
[null,"AFRICA","Nigeria","ERHA",31.7,0.21,null,null,null,null,null,"",""]
[null,"AFRICA","Nigeria","Escravos",36.200000000000003,0.1,null,null,null,null,null,"",""]
[null,"AFRICA","Nigeria","Forcados Blend",29.7,0.3,null,null,null,null,null,"",""]
[null,"AFRICA","Nigeria","Odudu","NA","NA",null,null,null,null,null,"",""]
[null,"AFRICA","Nigeria","Okono","NA","NA",null,null,null,null,null,"",""]
[null,"AFRICA","Nigeria","Okoro","NA","NA",null,null,null,null,null,"",""]
[null,"AFRICA","Nigeria","Okwori",36.9,"NA",null,null,null,null,null,"",""]
[null,"AFRICA","Nigeria","Okwuibome","NA","NA",null,null,null,null,null,"",""]
[null,"AFRICA","Nigeria","Otakikpo","NA","NA",null,null,null,null,null,"",""]
[null,"AFRICA","Nigeria","Pennington",36.6,0.1,null,null,null,null,null,"",""]
[null,"AFRICA","Nigeria","Qua Iboe",35.799999999999997,0.1,null,null,null,null,null,"",""]
[null,"AFRICA","Nigeria","Ukpokiti",42.3,0.01,null,null,null,null,null,"",""]
[null,"AFRICA","Nigeria","Usan","NA",0.27300000000000002,null,null,null,null,null,"",""]
[null,"AFRICA","Nigeria","Yoho",39.6,6.2E-2,null,null,null,null,null,"",""]
[null,"AFRICA","Nigeria","Nigeria Miscellaneous","NA","NA",null,null,null,null,null,"",""]
[null,"AFRICA","Senegal","SNE","NA","NA",null,null,null,null,null,"",""]
[null,"AFRICA","Senegal","Senegal Miscellaneous","NA","NA",null,null,null,null,null,"",""]
[null,"AFRICA","South Africa","Saldanha B","NA","NA",null,null,null,null,null,"",""]
[null,"AFRICA","South Africa","South Africa Miscellaneous","NA","NA",null,null,null,null,null,"",""]
[null,"AFRICA","South Sudan","South Sudan Miscellaneous","NA","NA",null,null,null,null,null,"",""]
[null,"AFRICA","Sudan","Sudan Miscellaneous","NA","NA",null,null,null,null,null,"",""]
[null,"AFRICA","Tunisia","Ashtart",29,1,null,null,null,null,null,"",""]
[null,"AFRICA","Tunisia","El Borma",43.3,0.1,null,null,null,null,null,"",""]
[null,"AFRICA","Tunisia","Ezzaouia-2",41.5,"NA",null,null,null,null,null,"",""]
[null,"AFRICA","Tunisia","Helm 4","NA","NA",null,null,null,null,null,"",""]
[null,"AFRICA","Tunisia","Miska","NA","NA",null,null,null,null,null,"",""]
[null,"AFRICA","Tunisia","Rhemoura ","NA","NA",null,null,null,null,null,"",""]
[null,"AFRICA","Tunisia","Rhemoura and Zarzaitine melange  ","NA","NA",null,null,null,null,null,"",""]
[null,"AFRICA","Tunisia","Zarzaitine",41.9,0.1,null,null,null,null,null,"",""]
[null,"AFRICA","Tunisia","Tunisia Miscellaneous","NA","NA",null,null,null,null,null,"",""]
[null,"AFRICA","Uganda","Tilenga","NA","NA",null,null,null,null,null,"",""]
[null,"AFRICA","Uganda","Uganda Miscellaneous","NA","NA",null,null,null,null,null,"",""]
[null,"AFRICA","Other Africa",null,"NA","NA",null,null,null,null,null,"",""]
[null,"ASIA","Brunei","Champion",24.4,0.1,null,null,null,null,null,"",""]
[null,"ASIA","Brunei","Seria ",38,0.08,null,null,null,null,null,"",""]
[null,"ASIA","Brunei","Brunei Miscellaneous","NA","NA",null,null,null,null,null,"",""]
[null,"ASIA","China","Peng Lai",21.8,0.28999999999999998,null,null,null,null,null,"",""]
[null,"ASIA","China","Wei Zhou",39.9,"NA",null,null,null,null,null,"",""]
[null,"ASIA","China","China Miscellaneous","NA","NA",null,null,null,null,null,"",""]
[null,"ASIA","India","India Miscellaneous","NA","NA",null,null,null,null,null,"",""]
[null,"ASIA","Indonesia","Duri",21.5,0.2,null,null,null,null,null,"",""]
[null,"ASIA","Indonesia","Indonesia Miscellaneous","NA","NA",null,null,null,null,null,"",""]
[null,"ASIA","Malaysia","Labuan Blend",33.200000000000003,0.1,null,null,null,null,null,"",""]
[null,"ASIA","Malaysia","Miri Light",36.299999999999997,0.1,null,null,null,null,null,"",""]
[null,"ASIA","Malaysia","Tapis EOR",44.3,4.3999999999999997E-2,null,null,null,null,null,"",""]
[null,"ASIA","Malaysia","Malaysia Miscellaneous","NA","NA",null,null,null,null,null,"",""]
[null,"ASIA","Philippines","Philippines Miscellaneous","NA","NA",null,null,null,null,null,"",""]
[null,"ASIA","Singapore","Singapore Miscellaneous","NA","NA",null,null,null,null,null,"",""]
[null,"ASIA","Thailand","Bualuang",27,"NA",null,null,null,null,null,"",""]
[null,"ASIA","Thailand","Thailand Miscellaneous","NA","NA",null,null,null,null,null,{"$f":"IF(J140<>0,ROUND(K140/J140,3),\"\")","v":""},{"$f":"IF(OR(H140=\"\",H140=0),\"\",ROUND(1/((H140+131.5)/(141.5*0.159))*J140,3))","v":""}]
[null,"ASIA","Uzbekistan","Uzbekistan Miscellaneous","NA","NA",null,null,null,null,null,"",""]
[null,"ASIA","Vietnam","Bach Ho (White Tiger)",38.6,0,null,null,null,null,null,"",""]
[null,"ASIA","Vietnam","Dai Hung (Big Bear)",36.9,0.1,null,null,null,null,null,"",""]
[null,"ASIA","Vietnam","Rang Dong",37.700000000000003,0.5,null,null,null,null,null,"",""]
[null,"ASIA","Vietnam","Ruby",35.6,0.08,null,null,null,null,null,"",""]
[null,"ASIA","Vietnam","Su Tu Den (Black Lion)",36.799999999999997,0.05,null,null,null,null,null,"",""]
[null,"ASIA","Vietnam","Vietnam Miscellaneous","NA","NA",null,null,null,null,null,"",""]
[null,"ASIA","Other Asia",null,"NA","NA",null,null,null,null,null,"",""]
[null,"AUSTRALIA AND OCEANIA","Australia","Barrow Island",36.799999999999997,0.1,null,null,null,null,null,"",""]
[null,"AUSTRALIA AND OCEANIA","Australia","Cossack",48.2,0.04,null,null,null,null,null,"",""]
[null,"AUSTRALIA AND OCEANIA","Australia","Enfield",21.7,0.13,null,null,null,null,null,"",""]
[null,"AUSTRALIA AND OCEANIA","Australia","Australia Miscellaneous","NA","NA",null,null,null,null,null,"",""]
[null,"AUSTRALIA AND OCEANIA","Papua New Guinea","Kutubu",44,0.04,null,null,null,null,null,"",""]
[null,"AUSTRALIA AND OCEANIA","Papua New Guinea","Papua New Guinea Miscellaneous","NA","NA",null,null,null,null,null,"",""]
[null,"AUSTRALIA AND OCEANIA","Other Australia and Oceania",null,"NA","NA",null,null,null,null,null,"",""]
[null,"EUROPE","Albania","Patos Marinza","NA","NA",null,null,null,null,null,"",""]
[null,"EUROPE","Albania","Albania Miscellaneous","NA","NA",null,null,null,null,null,"",""]
[null,"EUROPE","Armenia","Armenian Miscellaneous","NA","NA",null,null,null,null,null,"",""]
[null,"EUROPE","Austria","Austria Miscellaneous","NA","NA",null,null,null,null,null,"",""]
[null,"EUROPE","Azerbaijan","Azeri BTC",38.200000000000003,0.17,null,null,null,null,null,"",""]
[null,"EUROPE","Azerbaijan","Azeri Light",34.799999999999997,0.15,null,null,null,null,null,"",""]
[null,"EUROPE","Azerbaijan","Azeri Supsa",35.299999999999997,0.15,null,null,null,null,null,"",""]
[null,"EUROPE","Azerbaijan","Azerbaijan Miscellaneous","NA","NA",null,null,null,null,null,"",""]
[null,"EUROPE","Belarus","Belarus Miscellaneous","NA","NA",null,null,null,null,null,"",""]
[null,"EUROPE","Bulgaria","Bulgaria Miscellaneous","NA","NA",null,null,null,null,null,"",""]
[null,"EUROPE","Croatia","Croatia Miscellaneous","NA","NA",null,null,null,null,null,"",""]
[null,"EUROPE","Czech Republic","Czech Republic Miscellaneous","NA","NA",null,null,null,null,null,"",""]
[null,"EUROPE","Denmark","Dan",30.4,0.3,null,null,null,null,null,"",""]
[null,"EUROPE","Denmark","Danish North Sea",34.5,0.26,null,null,null,null,null,"",""]
[null,"EUROPE","Denmark","Gorm",33.9,0.2,null,null,null,null,null,"",""]
[null,"EUROPE","Denmark","South Arne","NA","NA",null,null,null,null,null,"",""]
[null,"EUROPE","Denmark","Denmark Miscellaneous","NA","NA",null,null,null,null,null,"",""]
[null,"EUROPE","France","France Miscellaneous","NA","NA",null,null,null,null,null,"",""]
[null,"EUROPE","Georgia","Georgian Miscellaneous","NA","NA",null,null,null,null,null,"",""]
[null,"EUROPE","Germany","Roherdoel Herbertshausen","NA","NA",null,null,null,null,null,"",""]
[null,"EUROPE","Germany","Germany Miscellaneous",null,null,null,null,null,null,null,"",""]
[null,"EUROPE","Greece","Greece Miscellaneous","NA","NA",null,null,null,null,null,"",""]
[null,"EUROPE","Hungary","Hungary Miscellaneous","NA","NA",null,null,null,null,null,"",""]
[null,"EUROPE","Italy","Gela","NA","NA",null,null,null,null,null,"",""]
[null,"EUROPE","Italy","Prezioso","NA","NA",null,null,null,null,null,"",""]
[null,"EUROPE","Italy","Rospo Mare",11,4.7,null,null,null,null,null,"",""]
[null,"EUROPE","Italy","Tempa Ross","NA","NA",null,null,null,null,null,"",""]
[null,"EUROPE","Italy","Vega","NA","NA",null,null,null,null,null,"",""]
[null,"EUROPE","Italy","Italy Miscellaneous","NA","NA",null,null,null,null,null,"",""]
[null,"EUROPE","Kazakhstan","CPC Blend",44.2,0.54,null,null,null,null,null,"",""]
[null,"EUROPE","Kazakhstan","KEBCO Blend","NA","NA",null,null,null,null,null,"",""]
[null,"EUROPE","Kazakhstan","Siberian light","NA",0.4,null,null,null,null,null,"",""]
[null,"EUROPE","Kazakhstan","Urals","NA",2,null,null,null,null,null,"",""]
[null,"EUROPE","Kazakhstan","Kazakhstan Miscellaneous","NA","NA",null,null,null,null,null,"",""]
[null,"EUROPE","Lithuania","Lithuania Miscellaneous","NA","NA",null,null,null,null,null,"",""]
[null,"EUROPE","Moldova","Moldova Miscellaneous","NA","NA",null,null,null,null,null,"",""]
[null,"EUROPE","Netherlands","Netherlands Miscellaneous","NA","NA",null,null,null,null,null,"",""]
[null,"EUROPE","Norway","Aasgard",48.5,0.18,null,null,null,null,null,"",""]
[null,"EUROPE","Norway","Aasta Hansteen",45,0.02,null,null,null,null,null,"",""]
[null,"EUROPE","Norway","Alvheim",34.5,0.18,null,null,null,null,null,"",""]
[null,"EUROPE","Norway","Balder","NA","NA",null,null,null,null,null,"",""]
[null,"EUROPE","Norway","Draugen",39.6,"NA",null,null,null,null,null,"",""]
[null,"EUROPE","Norway","Ekofisk",43.4,0.2,null,null,null,null,null,"",""]
[null,"EUROPE","Norway","Gina Krog","NA","NA",null,null,null,null,null,"",""]
[null,"EUROPE","Norway","Goliat",39,0.19,null,null,null,null,null,"",""]
[null,"EUROPE","Norway","Grane",30.7,0.56999999999999995,null,null,null,null,null,"",""]
[null,"EUROPE","Norway","Gudrun",50.7,8.5999999999999993E-2,null,null,null,null,null,"",""]
[null,"EUROPE","Norway","Gullfaks",28.6,0.4,null,null,null,null,null,"",""]
[null,"EUROPE","Norway","Heidrun",29,"NA",null,null,null,null,null,{"$f":"IF(J204<>0,ROUND(K204/J204,3),\"\")","v":""},{"$f":"IF(OR(H204=\"\",H204=0),\"\",ROUND(1/((H204+131.5)/(141.5*0.159))*J204,3))","v":""}]
[null,"EUROPE","Norway","Johan Castberg","NA","NA",null,null,null,null,null,"",""]
[null,"EUROPE","Norway","Johan Sverdrup",28.7,0.81,null,null,null,null,null,"",""]
[null,"EUROPE","Norway","Knarr","NA","NA",null,null,null,null,null,"",""]
[null,"EUROPE","Norway","Martin Linge",30.2,0.18,null,null,null,null,null,"",""]
[null,"EUROPE","Norway","Norne",32,0.19,null,null,null,null,null,"",""]
[null,"EUROPE","Norway","Ormen Lange","NA","NA",null,null,null,null,null,"",""]
[null,"EUROPE","Norway","Oseberg",32.5,0.2,null,null,null,null,null,"",""]
[null,"EUROPE","Norway","Siri","NA","NA",null,null,null,null,null,"",""]
[null,"EUROPE","Norway","Skarv",48.5,0.1,null,null,null,null,null,"",""]
[null,"EUROPE","Norway","Statfjord",38.4,0.3,null,null,null,null,null,"",""]
[null,"EUROPE","Norway","Tor",42,0.1,null,null,null,null,null,"",""]
[null,"EUROPE","Norway","Troll",28.3,0.31,null,null,null,null,null,"",""]
[null,"EUROPE","Norway","Yme",38,"NA",null,null,null,null,null,"",""]
[null,"EUROPE","Norway","Norway Miscellaneous","NA","NA",null,null,null,null,null,"",""]
[null,"EUROPE","Poland","Debno","NA","NA",null,null,null,null,null,"",""]
[null,"EUROPE","Poland","Lubjatov","NA","NA",null,null,null,null,null,"",""]
[null,"EUROPE","Poland ","Poland Miscellaneous","NA","NA",null,null,null,null,null,"",""]
[null,"EUROPE","Romania","Romania Miscellaneous","NA","NA",null,null,null,null,null,"",""]
[null,"EUROPE","Russia","CPC","NA","NA",null,null,null,null,null,"",""]
[null,"EUROPE","Russia","ESPO blend",36,0.5,null,null,null,null,null,"",""]
[null,"EUROPE","Russia","Novy Port","NA","NA",null,null,null,null,null,"",""]
[null,"EUROPE","Russia","Siberian Light",37.799999999999997,0.4,null,null,null,null,null,"",""]
[null,"EUROPE","Russia","Sokol",39.700000000000003,0.18,null,null,null,null,null,"",""]
[null,"EUROPE","Russia","Urals",31,2,null,null,null,null,null,"",""]
[null,"EUROPE","Russia","Varandey","NA","NA",null,null,null,null,null,"",""]
[null,"EUROPE","Russia","Russia Miscellaneous","NA","NA",null,null,null,null,null,"",""]
[null,"EUROPE","Serbia ","Serbia Miscellaneous","NA","NA",null,null,null,null,null,"",""]
[null,"EUROPE","Slovakia","Slovakia Miscellaneous","NA","NA",null,null,null,null,null,"",""]
[null,"EUROPE","Spain","Spain Miscellaneous","NA","NA",null,null,null,null,null,"",""]
[null,"EUROPE","Turkey","Turkish Miscellaneous","NA","NA",null,null,null,null,null,"",""]
[null,"EUROPE","Ukraine","Ukraine Miscellaneous","NA","NA",null,null,null,null,null,"",""]
[null,"EUROPE","United Kingdom","Alba",19.2,1.33,null,null,null,null,null,"",""]
[null,"EUROPE","United Kingdom","Anasuria","NA","NA",null,null,null,null,null,"",""]
[null,"EUROPE","United Kingdom","Argyle",38.6,0.2,null,null,null,null,null,"",""]
[null,"EUROPE","United Kingdom","Auk",37.200000000000003,0.5,null,null,null,null,null,"",""]
[null,"EUROPE","United Kingdom","Beryl",36.5,0.4,null,null,null,null,null,"",""]
[null,"EUROPE","United Kingdom","Brae",33.6,0.7,null,null,null,null,null,"",""]
[null,"EUROPE","United Kingdom","Brent",38.6,0.42,null,null,null,null,null,"",""]
[null,"EUROPE","United Kingdom","Captain",19.100000000000001,0.7,null,null,null,null,null,"",""]
[null,"EUROPE","United Kingdom","Catcher crude","NA","NA",null,null,null,null,null,"",""]
[null,"EUROPE","United Kingdom","Clair ",23.5,0.46,null,null,null,null,null,"",""]
[null,"EUROPE","United Kingdom","Claymore",30.5,1.6,null,null,null,null,null,"",""]
[null,"EUROPE","United Kingdom","Cormorant ","NA","NA",null,null,null,null,null,"",""]
[null,"EUROPE","United Kingdom","Dumbarton crude",40.200000000000003,0.28000000000000003,null,null,null,null,null,"",""]
[null,"EUROPE","United Kingdom","Flotta",35.700000000000003,1.1000000000000001,null,null,null,null,null,"",""]
[null,"EUROPE","United Kingdom","Forties",36.6,0.3,null,null,null,null,null,"",""]
[null,"EUROPE","United Kingdom","Harding",20.7,0.59,null,null,null,null,null,"",""]
[null,"EUROPE","United Kingdom","Lancaster crude","NA","NA",null,null,null,null,null,"",""]
[null,"EUROPE","United Kingdom","Magnus",39.299999999999997,0.3,null,null,null,null,null,"",""]
[null,"EUROPE","United Kingdom","Mariner crude",14.9,1.08,null,null,null,null,null,"",""]
[null,"EUROPE","United Kingdom","Ninian Blend",35.6,0.4,null,null,null,null,null,"",""]
[null,"EUROPE","United Kingdom","Penguin","NA","NA",null,null,null,null,null,"",""]
[null,"EUROPE","United Kingdom","Piper",35.6,0.9,null,null,null,null,null,"",""]
[null,"EUROPE","United Kingdom","Schiehallion",25.8,0.43,null,null,null,null,null,"",""]
[null,"EUROPE","United Kingdom","Triton","NA","NA",null,null,null,null,null,"",""]
[null,"EUROPE","United Kingdom","Western isles crude","NA","NA",null,null,null,null,null,"",""]
[null,"EUROPE","United Kingdom","Wytch Farm",41.5,"NA",null,null,null,null,null,"",""]
[null,"EUROPE","United Kingdom","United Kingdon Miscellaneous","NA","NA",null,null,null,null,null,"",""]
[null,"EUROPE","Other Europe",null,"NA","NA",null,null,null,null,null,"",""]
[null,"LATIN AMERICA","Argentina","Canadon Seco",27,0.2,null,null,null,null,null,"",""]
[null,"LATIN AMERICA","Argentina","Escalante",24,0.2,null,null,null,null,null,"",""]
[null,"LATIN AMERICA","Argentina","Hidra",51.7,0.05,null,null,null,null,null,"",""]
[null,"LATIN AMERICA","Argentina","Medanito",34.93,0.48,null,null,null,null,null,{"$f":"IF(J267<>0,ROUND(K267/J267,3),\"\")","v":""},{"$f":"IF(OR(H267=\"\",H267=0),\"\",ROUND(1/((H267+131.5)/(141.5*0.159))*J267,3))","v":""}]
[null,"LATIN AMERICA","Argentina","Argentina Miscellaneous","NA","NA",null,null,null,null,null,"",""]
[null,"LATIN AMERICA","Belize","Belize Miscellaneous","NA","NA",null,null,null,null,null,"",""]
[null,"LATIN AMERICA","Bolivia","Bolivian Miscellaneous","NA","NA",null,null,null,null,null,"",""]
[null,"LATIN AMERICA","Brazil","Albacora East",19.8,0.52,null,null,null,null,null,"",""]
[null,"LATIN AMERICA","Brazil","Atapu",28.3,0.37,null,null,null,null,null,"",""]
[null,"LATIN AMERICA","Brazil","Bauna","NA","NA",null,null,null,null,null,"",""]
[null,"LATIN AMERICA","Brazil","Brazil Polvo",19.600000000000001,1.1399999999999999,null,null,null,null,null,"",""]
[null,"LATIN AMERICA","Brazil","Buzios","NA","NA",null,null,null,null,null,"",""]
[null,"LATIN AMERICA","Brazil","Campos Basin",20,"NA",null,null,null,null,null,"",""]
[null,"LATIN AMERICA","Brazil","Frade",19.5,0.5,null,null,null,null,null,"",""]
[null,"LATIN AMERICA","Brazil","Jubarte Heavy","NA","NA",null,null,null,null,null,"",""]
[null,"LATIN AMERICA","Brazil","Lapa",22.7,0.56999999999999995,null,null,null,null,null,"",""]
[null,"LATIN AMERICA","Brazil","Lula",30.5,0.38,null,null,null,null,null,"",""]
[null,"LATIN AMERICA","Brazil","Marlim",20,"NA",null,null,null,null,null,"",""]
[null,"LATIN AMERICA","Brazil","Mero",28.8,0.32,null,null,null,null,null,"",""]
[null,"LATIN AMERICA","Brazil","Peregrino ",13.5,1.83,null,null,null,null,null,"",""]
[null,"LATIN AMERICA","Brazil","Roncador",28.3,0.57999999999999996,null,null,null,null,null,"",""]
[null,"LATIN AMERICA","Brazil","Sapinhoa","NA","NA",null,null,null,null,null,"",""]
[null,"LATIN AMERICA","Brazil","Sepia",27.2,0.4,null,null,null,null,null,"",""]
[null,"LATIN AMERICA","Brazil","Sururu",28.3,0.35,null,null,null,null,null,"",""]
[null,"LATIN AMERICA","Brazil","Tubarao","NA","NA",null,null,null,null,null,"",""]
[null,"LATIN AMERICA","Brazil","Tupi (Lula)","NA","NA",null,null,null,null,null,"",""]
[null,"LATIN AMERICA","Brazil","Urucu (Upper Amazon)",42,"NA",null,null,null,null,null,"",""]
[null,"LATIN AMERICA","Brazil","Brazil Miscellaneous","NA","NA",null,null,null,null,null,"",""]
[null,"LATIN AMERICA","Chile","Chile Miscellaneous","NA","NA",null,null,null,null,null,"",""]
[null,"LATIN AMERICA","Colombia","Acordionero ","NA","NA",null,null,null,null,null,"",""]
[null,"LATIN AMERICA","Colombia","Cano-Limon",30.8,0.5,null,null,null,null,null,"",""]
[null,"LATIN AMERICA","Colombia","Castilla Blend",20.8,1.72,null,null,null,null,null,"",""]
[null,"LATIN AMERICA","Colombia","Cusiana",44.4,0.2,null,null,null,null,null,"",""]
[null,"LATIN AMERICA","Colombia","Mares Blend","NA","NA",null,null,null,null,null,"",""]
[null,"LATIN AMERICA","Colombia","Suria",32,"NA",null,null,null,null,null,"",""]
[null,"LATIN AMERICA","Colombia","Vasconia",27.3,0.6,null,null,null,null,null,"",""]
[null,"LATIN AMERICA","Colombia","Colombia Miscellaneous","NA","NA",null,null,null,null,null,"",""]
[null,"LATIN AMERICA","Ecuador","Limoncoha-1",28,"NA",null,null,null,null,null,"",""]
[null,"LATIN AMERICA","Ecuador","Oriente",29.2,1,null,null,null,null,null,"",""]
[null,"LATIN AMERICA","Ecuador","Ecuador Miscellaneous","NA","NA",null,null,null,null,null,"",""]
[null,"LATIN AMERICA","Guatemala","Guatemala Miscellaneous","NA","NA",null,null,null,null,null,"",""]
[null,"LATIN AMERICA","Guyana","Liza",32.9,0.51,null,null,null,null,null,"",""]
[null,"LATIN AMERICA","Guyana","Stabroek","NA","NA",null,null,null,null,null,"",""]
[null,"LATIN AMERICA","Guyana","Unity Gold ",35.299999999999997,"NA",null,null,null,null,null,"",""]
[null,"LATIN AMERICA","Guyana","Guyana Miscellaneous","NA","NA",null,null,null,null,null,"",""]
[null,"LATIN AMERICA","Mexico","Isthmus",32.799999999999997,1.5,null,null,null,null,null,"",""]
[null,"LATIN AMERICA","Mexico","Maya",22,3.3,null,null,null,null,null,"",""]
[null,"LATIN AMERICA","Mexico","Mexico Miscellaneous","NA","NA",null,null,null,null,null,"",""]
[null,"LATIN AMERICA","Peru","Peru Miscellaneous","NA","NA",null,null,null,null,null,"",""]
[null,"LATIN AMERICA","Trinidad and Tobago","Calypso Miscellaneous",30.84,0.59,null,null,null,null,null,"",""]
[null,"LATIN AMERICA","Trinidad and Tobago","Galeota Mix",32.799999999999997,0.3,null,null,null,null,null,"",""]
[null,"LATIN AMERICA","Trinidad and Tobago","Molo crude","NA","NA",null,null,null,null,null,"",""]
[null,"LATIN AMERICA","Trinidad and Tobago","Trinidad and Tobago Miscellaneous","NA","NA",null,null,null,null,null,"",""]
[null,"LATIN AMERICA","Venezuela","Boscan",10.1,5.5,null,null,null,null,null,"",""]
[null,"LATIN AMERICA","Venezuela","Carabobo ","NA","NA",null,null,null,null,null,"",""]
[null,"LATIN AMERICA","Venezuela","Corocoro",24,"NA",null,null,null,null,null,"",""]
[null,"LATIN AMERICA","Venezuela","Hamaca",26,1.55,null,null,null,null,null,"",""]
[null,"LATIN AMERICA","Venezuela","Leona",24.1,1.5,null,null,null,null,null,"",""]
[null,"LATIN AMERICA","Venezuela","Merey",17.399999999999999,2.2000000000000002,null,null,null,null,null,"",""]
[null,"LATIN AMERICA","Venezuela","Morichal",10.6,"NA",null,null,null,null,null,"",""]
[null,"LATIN AMERICA","Venezuela","Venezuela Miscellaneous","NA","NA",null,null,null,null,null,"",""]
[null,"LATIN AMERICA","Other Latin America",null,"NA","NA",null,null,null,null,null,"",""]
[null,"MIDDLE   EAST","Abu Dhabi","Murban",40.5,0.8,null,null,null,null,null,"",""]
[null,"MIDDLE   EAST","Abu Dhabi","Umm Shaif (Abu Dhabi Marine)",37.4,1.5,null,null,null,null,null,"",""]
[null,"MIDDLE   EAST","Abu Dhabi","Upper Zakum",34.4,1.7,null,null,null,null,null,"",""]
[null,"MIDDLE   EAST","Abu Dhabi","Zakum (Lower Zakum/Abu Dhabi Marine)",40.6,1,null,null,null,null,null,"",""]
[null,"MIDDLE   EAST","Abu Dhabi","Abu Dhabi Miscellaneous","NA","NA",null,null,null,null,null,"",""]
[null,"MIDDLE   EAST","Bahrain","Bahrain Miscellaneous","NA","NA",null,null,null,null,null,{"$f":"IF(J331<>0,ROUND(K331/J331,3),\"\")","v":""},{"$f":"IF(OR(H331=\"\",H331=0),\"\",ROUND(1/((H331+131.5)/(141.5*0.159))*J331,3))","v":""}]
[null,"MIDDLE   EAST","Dubai","Dubai (Fateh)",31.1,2,null,null,null,null,null,"",""]
[null,"MIDDLE   EAST","Dubai","Dubai Miscellaneous","NA","NA",null,null,null,null,null,"",""]
[null,"MIDDLE   EAST","Iran","Foroozan (Fereidoon)",31.3,2.5,null,null,null,null,null,"",""]
[null,"MIDDLE   EAST","Iran","Iranian Heavy",31,1.7,null,null,null,null,null,"",""]
[null,"MIDDLE   EAST","Iran","Iranian Light",33.799999999999997,1.4,null,null,null,null,null,"",""]
[null,"MIDDLE   EAST","Iran","Iran Miscellaneous","NA","NA",null,null,null,null,null,"",""]
[null,"MIDDLE   EAST","Iraq","Basrah Heavy",24.7,3.5,null,null,null,null,null,"",""]
[null,"MIDDLE   EAST","Iraq","Basrah Medium",31.1,2.6,null,null,null,null,null,"",""]
[null,"MIDDLE   EAST","Iraq","Kirkuk Blend (Pers. Gulf)",35.1,2,null,null,null,null,null,"",""]
[null,"MIDDLE   EAST","Iraq","KTB Blend","NA","NA",null,null,null,null,null,"",""]
[null,"MIDDLE   EAST","Iraq","Iraq Miscellaneous","NA","NA",null,null,null,null,null,"",""]
[null,"MIDDLE   EAST","Kuwait","Mina al Ahmadi (Kuwait Export)",31.4,2.5,null,null,null,null,null,"",""]
[null,"MIDDLE   EAST","Kuwait","Kuwait Miscellaneous","NA","NA",null,null,null,null,null,"",""]
[null,"MIDDLE   EAST","Neutral Zone","Burgan (Wafra)",23.3,3.4,null,null,null,null,null,"",""]
[null,"MIDDLE   EAST","Neutral Zone","Khafji",28.5,2.9,null,null,null,null,null,"",""]
[null,"MIDDLE   EAST","Neutral Zone","Neutral Zone Miscellaneous","NA","NA",null,null,null,null,null,"",""]
[null,"MIDDLE   EAST","Oman","Oman Miscellaneous","NA","NA",null,null,null,null,null,"",""]
[null,"MIDDLE   EAST","Qatar","Dukhan",41.7,1.3,null,null,null,null,null,"",""]
[null,"MIDDLE   EAST","Qatar","Qatar Miscellaneous","NA","NA",null,null,null,null,null,"",""]
[null,"MIDDLE   EAST","Ras Al Khaimah","Ras Al Khaimah Miscellaneous","NA","NA",null,null,null,null,null,"",""]
[null,"MIDDLE   EAST","Saudi Arabia","Arab Light",33,1.77,null,null,null,null,null,"",""]
[null,"MIDDLE   EAST","Saudi Arabia","Arab Extra Light",40,1.0900000000000001,null,null,null,null,null,"",""]
[null,"MIDDLE   EAST","Saudi Arabia","Arab Heavy",28,2.8,null,null,null,null,null,"",""]
[null,"MIDDLE   EAST","Saudi Arabia","Arab Medium",31,2.5499999999999998,null,null,null,null,null,"",""]
[null,"MIDDLE   EAST","Saudi Arabia","Saudi Arabia Miscellaneous","NA","NA",null,null,null,null,null,"",""]
[null,"MIDDLE   EAST","Sharjah","Sharjah Miscellaneous","NA","NA",null,null,null,null,null,"",""]
[null,"MIDDLE   EAST","Syria","Souedie",24.9,3.8,null,null,null,null,null,"",""]
[null,"MIDDLE   EAST","Syria","Syria Miscellaneous","NA","NA",null,null,null,null,null,"",""]
[null,"MIDDLE   EAST","Yemen","Alif",40.4,0.1,null,null,null,null,null,"",""]
[null,"MIDDLE   EAST","Yemen","Maarib Lt.",49,0.2,null,null,null,null,null,"",""]
[null,"MIDDLE   EAST","Yemen","North Yemeni Blend",40.5,"NA",null,null,null,null,null,"",""]
[null,"MIDDLE   EAST","Yemen","Shabwa Blend",34.6,0.6,null,null,null,null,null,"",""]
[null,"MIDDLE   EAST","Yemen","Yemen Miscellaneous","NA","NA",null,null,null,null,null,"",""]
[null,"MIDDLE   EAST","Other Middle East",null,"NA","NA",null,null,null,null,null,"",""]
[null,"NORTH AMERICA","Canada","Access Western Blend","NA","NA",null,null,null,null,null,"",""]
[null,"NORTH AMERICA","Canada","Christina Lake",20.5,3,null,null,null,null,null,"",""]
[null,"NORTH AMERICA","Canada","Cold Lake",13.2,4.0999999999999996,null,null,null,null,null,"",""]
[null,"NORTH AMERICA","Canada","Hebron blend crude",20.399999999999999,0.78700000000000003,null,null,null,null,null,"",""]
[null,"NORTH AMERICA","Canada","Hibernia",37.299999999999997,0.37,null,null,null,null,null,"",""]
[null,"NORTH AMERICA","Canada","Syncrude Mildred Lake/Aurora","NA","NA",null,null,null,null,null,"",""]
[null,"NORTH AMERICA","Canada","Terra Nova",32.299999999999997,0.53,null,null,null,null,null,"",""]
[null,"NORTH AMERICA","Canada","White Rose",31,0.31,null,null,null,null,null,"",""]
[null,"NORTH AMERICA","Canada","Canada Miscellaneous","NA","NA",null,null,null,null,null,"",""]
[null,"NORTH AMERICA","US","Bakken",43.3,7.0000000000000007E-2,null,null,null,null,null,"",""]
[null,"NORTH AMERICA","US","Eagle Ford",45,0.2,null,null,null,null,null,"",""]
[null,"NORTH AMERICA","US","Heavy Louisiana Sweet",33.5,0.42,null,null,null,null,null,"",""]
[null,"NORTH AMERICA","US","Light Louisiana Sweet",38.5,0.39,null,null,null,null,null,"",""]
[null,"NORTH AMERICA","US","Mars",29.4,1.92,null,null,null,null,null,"",""]
[null,"NORTH AMERICA","US","Niobrara",39,0.39,null,null,null,null,null,"",""]
[null,"NORTH AMERICA","US","Other LTO","NA","NA",null,null,null,null,null,"",""]
[null,"NORTH AMERICA","US","Permian","NA","NA",null,null,null,null,null,"",""]
[null,"NORTH AMERICA","US","Poseidon",29.1,1.94,null,null,null,null,null,"",""]
[null,"NORTH AMERICA","US","WTI",40.799999999999997,0.45,null,null,null,null,null,"",""]
[null,"NORTH AMERICA","US","US Miscellaneous","NA","NA",null,null,null,null,null,"",""]
[null,"NORTH AMERICA","Other North America",null,"NA","NA",null,null,null,null,null,"",""]
[null,"NOT SPECIFIED","Not specified","Unknown","NA","NA",null,null,null,null,null,"",""]
[null,"Total imports","TOTAL IMPORTS",null,null,null,null,{"$f":"IF(J388<>0,ROUND(SUMPRODUCT(H10:H387,J10:J387)/J388,3),\"\")","v":""},{"$f":"IF(J388<>0,ROUND(SUMPRODUCT(I10:I387,J10:J387)/J388,3),\"\")","v":""},{"$f":"SUM(J10:J387)","v":0},{"$f":"SUM(K10:K387)","v":0},"",{"$f":"SUM(M10:M387)","v":0}]
[]
[]
[]
[]
[]
[]
[]
[]
[]
[]
[null,"Table 2"]
[null,null,"Total imports",null,"Average CIF price"]
[null,null,"1000 barrels","1000 tonnes","per barrel","per tonne"]
[null,"Crude oil imports price",{"$f":"'Table 1'!$I$394","v":0},{"$f":"'Table 1'!$L$394","v":0},{"$f":"'Table 1'!$K$394","v":""},{"$f":"IF('Table 1'!$L$394<>0,ROUND('Table 1'!$J$394/'Table 1'!$L$394,3),\"\")","v":""}]
[]
[]
[]
[]
[]
[]
[null,null,"Total production",null,"Average CIF price"]
[null,null,"1000 barrels","1000 tonnes","per barrel","per tonne"]
[null,"Crude oil production price"]